{"text_format":"1","workbook":"xlsx","n_sheets":2,"sheets":["Blatt1","Archiv"],"not_rendered":{"charts":0,"images":0,"macros":1,"external_links":0,"defined_names":5,"comments":0,"pivot_tables":0},"unopened":[],"bounds":{"document_bytes":16777216,"sheet_cells":100000,"rows_first":2000,"rows_last":500,"rows_between":2000,"halvings":0,"cell_chars":16384,"cell_head_chars":4096},"cells_cut":0,"cells_raw":0,"read":"whole","date_system":"1900"}

{"sheet":"Blatt1","index":0,"n_rows":72,"n_cols":83,"rows_kept":72,"cut":false,"hidden":false,"merged":[[4,0,5,0],[70,81,70,82],[4,10,5,10],[0,1,0,43]]}
[0,"Mosaik-Nonogramm, programmiert von Peter Gallin am 28. August 2017"]
[]
[]
[null,"Hinweis: Falls das Gesamtspielfeld kleiner als 60x30 ist, kann man einfach die überflüssigen Felder gelb färben (siehe Aufgabe Nr. 2 im Archiv)."]
[]
[]
[]
[null,null,null,null,null,null,null,null,null,null,null,null,null,null,null,null,null,null,null,null,null,null,null,null,null,null,null,null,null,null,null,null,null,null,null,null,"Im Archiv:"]
[null,null,null,null,null,null,null,null,null,null,"Heft Profi-Nonogramm 46, Nr. 17",null,null,null,null,null,null,null,null,null,null,null,null,null,null,null,null,null,null,null,null,null,null,null,null,null,"Aufgabe Nr. ",null,null,null,2]
[null,null,null,null,null,null,null,null,null,null,null,null,null,null,null,null,null,null,null,null,null,null,null,null,null,null,null,null,null,null,null,null,null,null,null,null,null,null,null,null,null,null,null,null,null,null,null,null,null,null,"Farbcodes der bereits gesetzten Farben",null,null,null,null,null,null,null,null,null,null,null,null,null,null,null,null,null,null,null,null,null,null,null,null,null,null,null,null,null,null,null,"Summe der Nullen"]
[null,null,null,null,null,null,null,null,1,null,2,null,3,null,2,2,null,null,3,null,null,3,null,null,4,null,null,null,null,0,null,null,null,null,0,null,null,null,null,null,null,null,null,null,null,null,null,null,null,null,{"$f":"Zellfarbe","v":3},{"$f":"Zellfarbe","v":6},{"$f":"Zellfarbe","v":3},{"$f":"Zellfarbe","v":6},{"$f":"Zellfarbe","v":3},{"$f":"Zellfarbe","v":6},{"$f":"Zellfarbe","v":6},{"$f":"Zellfarbe","v":3},{"$f":"Zellfarbe","v":3},{"$f":"Zellfarbe","v":3},{"$f":"Zellfarbe","v":3},{"$f":"Zellfarbe","v":3},{"$f":"Zellfarbe","v":3},{"$f":"Zellfarbe","v":3},{"$f":"Zellfarbe","v":3},{"$f":"Zellfarbe","v":3},{"$f":"Zellfarbe","v":6},{"$f":"Zellfarbe","v":6},{"$f":"Zellfarbe","v":6},{"$f":"Zellfarbe","v":6},{"$f":"Zellfarbe","v":6},{"$f":"Zellfarbe","v":6},{"$f":"Zellfarbe","v":6},{"$f":"Zellfarbe","v":6},{"$f":"Zellfarbe","v":6},{"$f":"Zellfarbe","v":6},{"$f":"Zellfarbe","v":6},{"$f":"Zellfarbe","v":6},{"$f":"Zellfarbe","v":6},{"$f":"Zellfarbe","v":6},null,null,{"$f":"COUNTIF(AY11:CB11,0)","v":0}]
[null,null,null,null,null,null,null,null,2,null,null,null,null,3,null,null,3,null,null,null,null,null,null,null,null,null,null,4,null,null,null,3,null,null,null,null,null,null,null,null,null,null,null,null,null,null,null,null,null,null,{"$f":"Zellfarbe","v":6},{"$f":"Zellfarbe","v":3},{"$f":"Zellfarbe","v":6},{"$f":"Zellfarbe","v":3},{"$f":"Zellfarbe","v":6},{"$f":"Zellfarbe","v":6},{"$f":"Zellfarbe","v":3},{"$f":"Zellfarbe","v":6},{"$f":"Zellfarbe","v":6},{"$f":"Zellfarbe","v":6},{"$f":"Zellfarbe","v":6},{"$f":"Zellfarbe","v":6},{"$f":"Zellfarbe","v":6},{"$f":"Zellfarbe","v":6},{"$f":"Zellfarbe","v":6},{"$f":"Zellfarbe","v":3},{"$f":"Zellfarbe","v":3},{"$f":"Zellfarbe","v":3},{"$f":"Zellfarbe","v":6},{"$f":"Zellfarbe","v":6},{"$f":"Zellfarbe","v":6},{"$f":"Zellfarbe","v":3},{"$f":"Zellfarbe","v":3},{"$f":"Zellfarbe","v":6},{"$f":"Zellfarbe","v":6},{"$f":"Zellfarbe","v":6},{"$f":"Zellfarbe","v":6},{"$f":"Zellfarbe","v":6},{"$f":"Zellfarbe","v":6},{"$f":"Zellfarbe","v":6},null,null,{"$f":"COUNTIF(AY12:CB12,0)","v":0}]
[null,null,null,null,null,null,null,null,3,null,2,null,3,2,1,1,null,3,3,null,null,4,null,2,null,null,null,5,5,null,4,null,null,4,null,null,null,null,null,null,null,null,null,null,null,null,null,null,null,null,{"$f":"Zellfarbe","v":3},{"$f":"Zellfarbe","v":6},{"$f":"Zellfarbe","v":6},{"$f":"Zellfarbe","v":6},{"$f":"Zellfarbe","v":6},{"$f":"Zellfarbe","v":6},{"$f":"Zellfarbe","v":6},{"$f":"Zellfarbe","v":3},{"$f":"Zellfarbe","v":3},{"$f":"Zellfarbe","v":6},{"$f":"Zellfarbe","v":6},{"$f":"Zellfarbe","v":3},{"$f":"Zellfarbe","v":3},{"$f":"Zellfarbe","v":6},{"$f":"Zellfarbe","v":6},{"$f":"Zellfarbe","v":6},{"$f":"Zellfarbe","v":6},{"$f":"Zellfarbe","v":3},{"$f":"Zellfarbe","v":3},{"$f":"Zellfarbe","v":6},{"$f":"Zellfarbe","v":3},{"$f":"Zellfarbe","v":6},{"$f":"Zellfarbe","v":6},{"$f":"Zellfarbe","v":3},{"$f":"Zellfarbe","v":6},{"$f":"Zellfarbe","v":6},{"$f":"Zellfarbe","v":6},{"$f":"Zellfarbe","v":6},{"$f":"Zellfarbe","v":6},{"$f":"Zellfarbe","v":6},null,null,0]
[null,null,null,null,null,null,null,null,4,null,2,null,1,null,1,2,null,null,5,null,5,null,6,null,2,2,null,null,null,6,4,3,3,null,3,null,null,null,null,null,null,null,null,null,null,null,null,null,null,null,{"$f":"Zellfarbe","v":6},{"$f":"Zellfarbe","v":6},{"$f":"Zellfarbe","v":3},{"$f":"Zellfarbe","v":6},{"$f":"Zellfarbe","v":6},{"$f":"Zellfarbe","v":6},{"$f":"Zellfarbe","v":6},{"$f":"Zellfarbe","v":6},{"$f":"Zellfarbe","v":6},{"$f":"Zellfarbe","v":3},{"$f":"Zellfarbe","v":3},{"$f":"Zellfarbe","v":3},{"$f":"Zellfarbe","v":6},{"$f":"Zellfarbe","v":6},{"$f":"Zellfarbe","v":3},{"$f":"Zellfarbe","v":6},{"$f":"Zellfarbe","v":6},{"$f":"Zellfarbe","v":6},{"$f":"Zellfarbe","v":3},{"$f":"Zellfarbe","v":3},{"$f":"Zellfarbe","v":3},{"$f":"Zellfarbe","v":6},{"$f":"Zellfarbe","v":3},{"$f":"Zellfarbe","v":6},{"$f":"Zellfarbe","v":3},{"$f":"Zellfarbe","v":6},{"$f":"Zellfarbe","v":6},{"$f":"Zellfarbe","v":6},{"$f":"Zellfarbe","v":6},{"$f":"Zellfarbe","v":6},null,null,0]
[null,null,null,null,null,null,null,null,5,null,1,2,null,null,null,null,null,6,6,null,null,5,null,5,null,4,2,null,null,4,null,3,3,null,2,null,null,null,null,null,null,null,null,null,null,null,null,null,null,null,{"$f":"Zellfarbe","v":3},{"$f":"Zellfarbe","v":6},{"$f":"Zellfarbe","v":6},{"$f":"Zellfarbe","v":6},{"$f":"Zellfarbe","v":6},{"$f":"Zellfarbe","v":3},{"$f":"Zellfarbe","v":3},{"$f":"Zellfarbe","v":3},{"$f":"Zellfarbe","v":3},{"$f":"Zellfarbe","v":6},{"$f":"Zellfarbe","v":6},{"$f":"Zellfarbe","v":3},{"$f":"Zellfarbe","v":3},{"$f":"Zellfarbe","v":3},{"$f":"Zellfarbe","v":6},{"$f":"Zellfarbe","v":6},{"$f":"Zellfarbe","v":3},{"$f":"Zellfarbe","v":6},{"$f":"Zellfarbe","v":6},{"$f":"Zellfarbe","v":3},{"$f":"Zellfarbe","v":6},{"$f":"Zellfarbe","v":6},{"$f":"Zellfarbe","v":6},{"$f":"Zellfarbe","v":3},{"$f":"Zellfarbe","v":6},{"$f":"Zellfarbe","v":6},{"$f":"Zellfarbe","v":6},{"$f":"Zellfarbe","v":6},{"$f":"Zellfarbe","v":6},{"$f":"Zellfarbe","v":6},null,null,0]
[null,null,null,null,null,null,null,null,6,null,1,null,3,null,7,null,9,9,null,7,null,null,5,null,5,4,null,null,2,null,1,2,3,3,null,null,null,null,null,null,null,null,null,null,null,null,null,null,null,null,{"$f":"Zellfarbe","v":6},{"$f":"Zellfarbe","v":6},{"$f":"Zellfarbe","v":6},{"$f":"Zellfarbe","v":3},{"$f":"Zellfarbe","v":3},{"$f":"Zellfarbe","v":3},{"$f":"Zellfarbe","v":3},{"$f":"Zellfarbe","v":3},{"$f":"Zellfarbe","v":3},{"$f":"Zellfarbe","v":3},{"$f":"Zellfarbe","v":3},{"$f":"Zellfarbe","v":6},{"$f":"Zellfarbe","v":6},{"$f":"Zellfarbe","v":3},{"$f":"Zellfarbe","v":3},{"$f":"Zellfarbe","v":3},{"$f":"Zellfarbe","v":6},{"$f":"Zellfarbe","v":6},{"$f":"Zellfarbe","v":6},{"$f":"Zellfarbe","v":6},{"$f":"Zellfarbe","v":6},{"$f":"Zellfarbe","v":6},{"$f":"Zellfarbe","v":3},{"$f":"Zellfarbe","v":6},{"$f":"Zellfarbe","v":6},{"$f":"Zellfarbe","v":6},{"$f":"Zellfarbe","v":6},{"$f":"Zellfarbe","v":6},{"$f":"Zellfarbe","v":6},{"$f":"Zellfarbe","v":6},null,null,0]
[null,null,null,null,null,null,null,null,7,null,1,null,5,null,7,null,8,9,9,8,null,4,null,null,null,5,null,3,null,null,0,null,3,null,0,null,null,null,null,null,null,null,null,null,null,null,null,null,null,null,{"$f":"Zellfarbe","v":6},{"$f":"Zellfarbe","v":6},{"$f":"Zellfarbe","v":3},{"$f":"Zellfarbe","v":3},{"$f":"Zellfarbe","v":3},{"$f":"Zellfarbe","v":3},{"$f":"Zellfarbe","v":3},{"$f":"Zellfarbe","v":3},{"$f":"Zellfarbe","v":3},{"$f":"Zellfarbe","v":3},{"$f":"Zellfarbe","v":3},{"$f":"Zellfarbe","v":3},{"$f":"Zellfarbe","v":6},{"$f":"Zellfarbe","v":6},{"$f":"Zellfarbe","v":6},{"$f":"Zellfarbe","v":3},{"$f":"Zellfarbe","v":6},{"$f":"Zellfarbe","v":6},{"$f":"Zellfarbe","v":3},{"$f":"Zellfarbe","v":6},{"$f":"Zellfarbe","v":6},{"$f":"Zellfarbe","v":6},{"$f":"Zellfarbe","v":3},{"$f":"Zellfarbe","v":6},{"$f":"Zellfarbe","v":6},{"$f":"Zellfarbe","v":6},{"$f":"Zellfarbe","v":6},{"$f":"Zellfarbe","v":6},{"$f":"Zellfarbe","v":6},{"$f":"Zellfarbe","v":6},null,null,0]
[null,null,null,null,null,null,null,null,8,null,null,5,6,8,null,null,8,null,7,null,null,null,3,0,2,null,5,4,null,1,null,null,5,null,null,null,null,null,null,null,null,null,null,null,null,null,null,null,null,null,{"$f":"Zellfarbe","v":6},{"$f":"Zellfarbe","v":3},{"$f":"Zellfarbe","v":3},{"$f":"Zellfarbe","v":6},{"$f":"Zellfarbe","v":3},{"$f":"Zellfarbe","v":6},{"$f":"Zellfarbe","v":3},{"$f":"Zellfarbe","v":3},{"$f":"Zellfarbe","v":3},{"$f":"Zellfarbe","v":3},{"$f":"Zellfarbe","v":6},{"$f":"Zellfarbe","v":3},{"$f":"Zellfarbe","v":6},{"$f":"Zellfarbe","v":6},{"$f":"Zellfarbe","v":6},{"$f":"Zellfarbe","v":3},{"$f":"Zellfarbe","v":3},{"$f":"Zellfarbe","v":3},{"$f":"Zellfarbe","v":6},{"$f":"Zellfarbe","v":6},{"$f":"Zellfarbe","v":6},{"$f":"Zellfarbe","v":6},{"$f":"Zellfarbe","v":3},{"$f":"Zellfarbe","v":6},{"$f":"Zellfarbe","v":6},{"$f":"Zellfarbe","v":6},{"$f":"Zellfarbe","v":6},{"$f":"Zellfarbe","v":6},{"$f":"Zellfarbe","v":6},{"$f":"Zellfarbe","v":6},null,null,0]
[null,null,null,null,null,null,null,null,9,null,3,null,6,null,5,7,7,7,null,null,6,null,null,null,null,null,6,null,1,null,null,4,4,null,null,null,null,null,null,null,null,null,null,null,null,null,null,null,null,null,{"$f":"Zellfarbe","v":3},{"$f":"Zellfarbe","v":6},{"$f":"Zellfarbe","v":3},{"$f":"Zellfarbe","v":3},{"$f":"Zellfarbe","v":3},{"$f":"Zellfarbe","v":3},{"$f":"Zellfarbe","v":3},{"$f":"Zellfarbe","v":3},{"$f":"Zellfarbe","v":6},{"$f":"Zellfarbe","v":6},{"$f":"Zellfarbe","v":3},{"$f":"Zellfarbe","v":3},{"$f":"Zellfarbe","v":6},{"$f":"Zellfarbe","v":6},{"$f":"Zellfarbe","v":6},{"$f":"Zellfarbe","v":6},{"$f":"Zellfarbe","v":3},{"$f":"Zellfarbe","v":6},{"$f":"Zellfarbe","v":6},{"$f":"Zellfarbe","v":6},{"$f":"Zellfarbe","v":6},{"$f":"Zellfarbe","v":3},{"$f":"Zellfarbe","v":3},{"$f":"Zellfarbe","v":3},{"$f":"Zellfarbe","v":6},{"$f":"Zellfarbe","v":6},{"$f":"Zellfarbe","v":6},{"$f":"Zellfarbe","v":6},{"$f":"Zellfarbe","v":6},{"$f":"Zellfarbe","v":6},null,null,0]
[null,null,null,null,null,null,null,null,10,null,4,6,null,null,7,null,null,null,3,3,4,null,3,null,null,4,null,3,2,null,3,null,null,null,3,null,null,null,null,null,null,null,null,null,null,null,null,null,null,null,{"$f":"Zellfarbe","v":6},{"$f":"Zellfarbe","v":3},{"$f":"Zellfarbe","v":3},{"$f":"Zellfarbe","v":6},{"$f":"Zellfarbe","v":3},{"$f":"Zellfarbe","v":6},{"$f":"Zellfarbe","v":3},{"$f":"Zellfarbe","v":3},{"$f":"Zellfarbe","v":6},{"$f":"Zellfarbe","v":3},{"$f":"Zellfarbe","v":3},{"$f":"Zellfarbe","v":6},{"$f":"Zellfarbe","v":3},{"$f":"Zellfarbe","v":6},{"$f":"Zellfarbe","v":6},{"$f":"Zellfarbe","v":3},{"$f":"Zellfarbe","v":3},{"$f":"Zellfarbe","v":6},{"$f":"Zellfarbe","v":6},{"$f":"Zellfarbe","v":6},{"$f":"Zellfarbe","v":3},{"$f":"Zellfarbe","v":6},{"$f":"Zellfarbe","v":6},{"$f":"Zellfarbe","v":6},{"$f":"Zellfarbe","v":3},{"$f":"Zellfarbe","v":6},{"$f":"Zellfarbe","v":6},{"$f":"Zellfarbe","v":6},{"$f":"Zellfarbe","v":6},{"$f":"Zellfarbe","v":6},null,null,0]
[null,null,null,null,null,null,null,null,11,null,4,null,6,6,null,null,7,null,null,null,null,null,null,3,4,null,5,null,null,null,null,null,3,null,3,null,null,null,null,null,null,null,null,null,null,null,null,null,null,null,{"$f":"Zellfarbe","v":3},{"$f":"Zellfarbe","v":3},{"$f":"Zellfarbe","v":6},{"$f":"Zellfarbe","v":3},{"$f":"Zellfarbe","v":3},{"$f":"Zellfarbe","v":3},{"$f":"Zellfarbe","v":3},{"$f":"Zellfarbe","v":6},{"$f":"Zellfarbe","v":6},{"$f":"Zellfarbe","v":6},{"$f":"Zellfarbe","v":6},{"$f":"Zellfarbe","v":6},{"$f":"Zellfarbe","v":6},{"$f":"Zellfarbe","v":3},{"$f":"Zellfarbe","v":6},{"$f":"Zellfarbe","v":3},{"$f":"Zellfarbe","v":6},{"$f":"Zellfarbe","v":6},{"$f":"Zellfarbe","v":3},{"$f":"Zellfarbe","v":3},{"$f":"Zellfarbe","v":6},{"$f":"Zellfarbe","v":6},{"$f":"Zellfarbe","v":3},{"$f":"Zellfarbe","v":3},{"$f":"Zellfarbe","v":6},{"$f":"Zellfarbe","v":6},{"$f":"Zellfarbe","v":6},{"$f":"Zellfarbe","v":6},{"$f":"Zellfarbe","v":6},{"$f":"Zellfarbe","v":6},null,null,0]
[null,null,null,null,null,null,null,null,12,null,4,null,null,6,null,7,null,null,null,0,null,3,4,3,4,null,5,5,5,null,3,null,null,null,3,null,null,null,null,null,null,null,null,null,null,null,null,null,null,null,{"$f":"Zellfarbe","v":3},{"$f":"Zellfarbe","v":6},{"$f":"Zellfarbe","v":3},{"$f":"Zellfarbe","v":3},{"$f":"Zellfarbe","v":6},{"$f":"Zellfarbe","v":3},{"$f":"Zellfarbe","v":3},{"$f":"Zellfarbe","v":3},{"$f":"Zellfarbe","v":6},{"$f":"Zellfarbe","v":6},{"$f":"Zellfarbe","v":6},{"$f":"Zellfarbe","v":3},{"$f":"Zellfarbe","v":3},{"$f":"Zellfarbe","v":6},{"$f":"Zellfarbe","v":6},{"$f":"Zellfarbe","v":3},{"$f":"Zellfarbe","v":6},{"$f":"Zellfarbe","v":3},{"$f":"Zellfarbe","v":3},{"$f":"Zellfarbe","v":6},{"$f":"Zellfarbe","v":3},{"$f":"Zellfarbe","v":3},{"$f":"Zellfarbe","v":6},{"$f":"Zellfarbe","v":6},{"$f":"Zellfarbe","v":3},{"$f":"Zellfarbe","v":6},{"$f":"Zellfarbe","v":6},{"$f":"Zellfarbe","v":6},{"$f":"Zellfarbe","v":6},{"$f":"Zellfarbe","v":6},null,null,0]
[null,null,null,null,null,null,null,null,13,null,null,null,6,null,7,null,null,null,null,null,null,5,null,2,3,4,6,null,4,null,null,null,4,3,null,null,null,null,null,null,null,null,null,null,null,null,null,null,null,null,{"$f":"Zellfarbe","v":6},{"$f":"Zellfarbe","v":3},{"$f":"Zellfarbe","v":3},{"$f":"Zellfarbe","v":6},{"$f":"Zellfarbe","v":3},{"$f":"Zellfarbe","v":3},{"$f":"Zellfarbe","v":6},{"$f":"Zellfarbe","v":6},{"$f":"Zellfarbe","v":6},{"$f":"Zellfarbe","v":6},{"$f":"Zellfarbe","v":6},{"$f":"Zellfarbe","v":6},{"$f":"Zellfarbe","v":3},{"$f":"Zellfarbe","v":6},{"$f":"Zellfarbe","v":6},{"$f":"Zellfarbe","v":3},{"$f":"Zellfarbe","v":3},{"$f":"Zellfarbe","v":6},{"$f":"Zellfarbe","v":3},{"$f":"Zellfarbe","v":6},{"$f":"Zellfarbe","v":6},{"$f":"Zellfarbe","v":6},{"$f":"Zellfarbe","v":6},{"$f":"Zellfarbe","v":3},{"$f":"Zellfarbe","v":6},{"$f":"Zellfarbe","v":6},{"$f":"Zellfarbe","v":6},{"$f":"Zellfarbe","v":6},{"$f":"Zellfarbe","v":6},{"$f":"Zellfarbe","v":6},null,null,0]
[null,null,null,null,null,null,null,null,14,null,4,null,null,6,null,5,null,1,null,null,3,null,null,null,3,4,6,null,null,null,2,3,3,2,null,null,null,null,null,null,null,null,null,null,null,null,null,null,null,null,{"$f":"Zellfarbe","v":3},{"$f":"Zellfarbe","v":3},{"$f":"Zellfarbe","v":6},{"$f":"Zellfarbe","v":3},{"$f":"Zellfarbe","v":3},{"$f":"Zellfarbe","v":3},{"$f":"Zellfarbe","v":6},{"$f":"Zellfarbe","v":6},{"$f":"Zellfarbe","v":6},{"$f":"Zellfarbe","v":3},{"$f":"Zellfarbe","v":3},{"$f":"Zellfarbe","v":3},{"$f":"Zellfarbe","v":6},{"$f":"Zellfarbe","v":6},{"$f":"Zellfarbe","v":6},{"$f":"Zellfarbe","v":3},{"$f":"Zellfarbe","v":6},{"$f":"Zellfarbe","v":3},{"$f":"Zellfarbe","v":6},{"$f":"Zellfarbe","v":6},{"$f":"Zellfarbe","v":6},{"$f":"Zellfarbe","v":3},{"$f":"Zellfarbe","v":3},{"$f":"Zellfarbe","v":6},{"$f":"Zellfarbe","v":6},{"$f":"Zellfarbe","v":6},{"$f":"Zellfarbe","v":6},{"$f":"Zellfarbe","v":6},{"$f":"Zellfarbe","v":6},{"$f":"Zellfarbe","v":6},null,null,0]
[null,null,null,null,null,null,null,null,15,null,4,null,5,null,7,null,null,null,null,null,3,2,null,null,null,4,null,3,3,2,3,null,2,null,0,null,null,null,null,null,null,null,null,null,null,null,null,null,null,null,{"$f":"Zellfarbe","v":3},{"$f":"Zellfarbe","v":6},{"$f":"Zellfarbe","v":3},{"$f":"Zellfarbe","v":6},{"$f":"Zellfarbe","v":3},{"$f":"Zellfarbe","v":6},{"$f":"Zellfarbe","v":6},{"$f":"Zellfarbe","v":6},{"$f":"Zellfarbe","v":3},{"$f":"Zellfarbe","v":6},{"$f":"Zellfarbe","v":6},{"$f":"Zellfarbe","v":6},{"$f":"Zellfarbe","v":6},{"$f":"Zellfarbe","v":6},{"$f":"Zellfarbe","v":6},{"$f":"Zellfarbe","v":3},{"$f":"Zellfarbe","v":6},{"$f":"Zellfarbe","v":3},{"$f":"Zellfarbe","v":6},{"$f":"Zellfarbe","v":6},{"$f":"Zellfarbe","v":3},{"$f":"Zellfarbe","v":6},{"$f":"Zellfarbe","v":6},{"$f":"Zellfarbe","v":6},{"$f":"Zellfarbe","v":6},{"$f":"Zellfarbe","v":6},{"$f":"Zellfarbe","v":6},{"$f":"Zellfarbe","v":6},{"$f":"Zellfarbe","v":6},{"$f":"Zellfarbe","v":6},null,null,0]
[null,null,null,null,null,null,null,null,16,null,null,5,null,6,6,null,3,null,3,null,3,null,null,null,4,null,4,null,null,null,null,1,0,1,null,null,null,null,null,null,null,null,null,null,null,null,null,null,null,null,{"$f":"Zellfarbe","v":6},{"$f":"Zellfarbe","v":3},{"$f":"Zellfarbe","v":6},{"$f":"Zellfarbe","v":3},{"$f":"Zellfarbe","v":3},{"$f":"Zellfarbe","v":3},{"$f":"Zellfarbe","v":6},{"$f":"Zellfarbe","v":6},{"$f":"Zellfarbe","v":3},{"$f":"Zellfarbe","v":6},{"$f":"Zellfarbe","v":6},{"$f":"Zellfarbe","v":6},{"$f":"Zellfarbe","v":6},{"$f":"Zellfarbe","v":6},{"$f":"Zellfarbe","v":3},{"$f":"Zellfarbe","v":6},{"$f":"Zellfarbe","v":3},{"$f":"Zellfarbe","v":6},{"$f":"Zellfarbe","v":6},{"$f":"Zellfarbe","v":3},{"$f":"Zellfarbe","v":6},{"$f":"Zellfarbe","v":6},{"$f":"Zellfarbe","v":6},{"$f":"Zellfarbe","v":6},{"$f":"Zellfarbe","v":6},{"$f":"Zellfarbe","v":6},{"$f":"Zellfarbe","v":6},{"$f":"Zellfarbe","v":6},{"$f":"Zellfarbe","v":6},{"$f":"Zellfarbe","v":6},null,null,0]
[null,null,null,null,null,null,null,null,17,null,null,null,6,6,8,null,null,null,3,4,null,null,null,null,null,null,3,2,3,null,null,0,null,null,1,null,null,null,null,null,null,null,null,null,null,null,null,null,null,null,{"$f":"Zellfarbe","v":3},{"$f":"Zellfarbe","v":6},{"$f":"Zellfarbe","v":3},{"$f":"Zellfarbe","v":3},{"$f":"Zellfarbe","v":6},{"$f":"Zellfarbe","v":3},{"$f":"Zellfarbe","v":3},{"$f":"Zellfarbe","v":6},{"$f":"Zellfarbe","v":6},{"$f":"Zellfarbe","v":3},{"$f":"Zellfarbe","v":3},{"$f":"Zellfarbe","v":3},{"$f":"Zellfarbe","v":6},{"$f":"Zellfarbe","v":3},{"$f":"Zellfarbe","v":3},{"$f":"Zellfarbe","v":6},{"$f":"Zellfarbe","v":3},{"$f":"Zellfarbe","v":6},{"$f":"Zellfarbe","v":6},{"$f":"Zellfarbe","v":3},{"$f":"Zellfarbe","v":6},{"$f":"Zellfarbe","v":6},{"$f":"Zellfarbe","v":6},{"$f":"Zellfarbe","v":6},{"$f":"Zellfarbe","v":3},{"$f":"Zellfarbe","v":6},{"$f":"Zellfarbe","v":6},{"$f":"Zellfarbe","v":6},{"$f":"Zellfarbe","v":6},{"$f":"Zellfarbe","v":6},null,null,0]
[null,null,null,null,null,null,null,null,18,null,null,5,6,7,null,8,8,null,null,6,8,7,6,null,null,4,null,null,null,null,3,null,1,null,2,null,null,null,null,null,null,null,null,null,null,null,null,null,null,null,{"$f":"Zellfarbe","v":6},{"$f":"Zellfarbe","v":3},{"$f":"Zellfarbe","v":6},{"$f":"Zellfarbe","v":3},{"$f":"Zellfarbe","v":3},{"$f":"Zellfarbe","v":3},{"$f":"Zellfarbe","v":3},{"$f":"Zellfarbe","v":3},{"$f":"Zellfarbe","v":6},{"$f":"Zellfarbe","v":6},{"$f":"Zellfarbe","v":3},{"$f":"Zellfarbe","v":3},{"$f":"Zellfarbe","v":3},{"$f":"Zellfarbe","v":3},{"$f":"Zellfarbe","v":6},{"$f":"Zellfarbe","v":3},{"$f":"Zellfarbe","v":6},{"$f":"Zellfarbe","v":6},{"$f":"Zellfarbe","v":6},{"$f":"Zellfarbe","v":3},{"$f":"Zellfarbe","v":6},{"$f":"Zellfarbe","v":6},{"$f":"Zellfarbe","v":6},{"$f":"Zellfarbe","v":6},{"$f":"Zellfarbe","v":6},{"$f":"Zellfarbe","v":6},{"$f":"Zellfarbe","v":6},{"$f":"Zellfarbe","v":6},{"$f":"Zellfarbe","v":6},{"$f":"Zellfarbe","v":6},null,null,0]
[null,null,null,null,null,null,null,null,19,null,null,null,7,8,null,9,9,null,7,null,8,7,null,null,null,3,2,1,null,null,null,0,null,null,null,null,null,null,null,null,null,null,null,null,null,null,null,null,null,null,{"$f":"Zellfarbe","v":3},{"$f":"Zellfarbe","v":6},{"$f":"Zellfarbe","v":3},{"$f":"Zellfarbe","v":3},{"$f":"Zellfarbe","v":3},{"$f":"Zellfarbe","v":3},{"$f":"Zellfarbe","v":3},{"$f":"Zellfarbe","v":3},{"$f":"Zellfarbe","v":3},{"$f":"Zellfarbe","v":3},{"$f":"Zellfarbe","v":3},{"$f":"Zellfarbe","v":3},{"$f":"Zellfarbe","v":6},{"$f":"Zellfarbe","v":6},{"$f":"Zellfarbe","v":6},{"$f":"Zellfarbe","v":3},{"$f":"Zellfarbe","v":6},{"$f":"Zellfarbe","v":6},{"$f":"Zellfarbe","v":6},{"$f":"Zellfarbe","v":3},{"$f":"Zellfarbe","v":6},{"$f":"Zellfarbe","v":6},{"$f":"Zellfarbe","v":6},{"$f":"Zellfarbe","v":3},{"$f":"Zellfarbe","v":6},{"$f":"Zellfarbe","v":6},{"$f":"Zellfarbe","v":6},{"$f":"Zellfarbe","v":6},{"$f":"Zellfarbe","v":6},{"$f":"Zellfarbe","v":6},null,null,0]
[null,null,null,null,null,null,null,null,20,null,null,6,7,8,null,null,null,null,9,null,7,5,null,null,3,null,null,null,3,null,null,null,1,null,3,null,null,null,null,null,null,null,null,null,null,null,null,null,null,null,{"$f":"Zellfarbe","v":6},{"$f":"Zellfarbe","v":3},{"$f":"Zellfarbe","v":3},{"$f":"Zellfarbe","v":3},{"$f":"Zellfarbe","v":3},{"$f":"Zellfarbe","v":3},{"$f":"Zellfarbe","v":3},{"$f":"Zellfarbe","v":3},{"$f":"Zellfarbe","v":3},{"$f":"Zellfarbe","v":3},{"$f":"Zellfarbe","v":3},{"$f":"Zellfarbe","v":3},{"$f":"Zellfarbe","v":6},{"$f":"Zellfarbe","v":6},{"$f":"Zellfarbe","v":3},{"$f":"Zellfarbe","v":6},{"$f":"Zellfarbe","v":6},{"$f":"Zellfarbe","v":6},{"$f":"Zellfarbe","v":3},{"$f":"Zellfarbe","v":6},{"$f":"Zellfarbe","v":6},{"$f":"Zellfarbe","v":6},{"$f":"Zellfarbe","v":6},{"$f":"Zellfarbe","v":6},{"$f":"Zellfarbe","v":3},{"$f":"Zellfarbe","v":6},{"$f":"Zellfarbe","v":6},{"$f":"Zellfarbe","v":6},{"$f":"Zellfarbe","v":6},{"$f":"Zellfarbe","v":6},null,null,0]
[null,null,null,null,null,null,null,null,21,null,5,null,7,null,null,null,9,null,null,null,null,null,3,3,null,null,1,null,null,2,0,null,1,null,3,null,null,null,null,null,null,null,null,null,null,null,null,null,null,null,{"$f":"Zellfarbe","v":3},{"$f":"Zellfarbe","v":3},{"$f":"Zellfarbe","v":6},{"$f":"Zellfarbe","v":3},{"$f":"Zellfarbe","v":3},{"$f":"Zellfarbe","v":3},{"$f":"Zellfarbe","v":3},{"$f":"Zellfarbe","v":3},{"$f":"Zellfarbe","v":3},{"$f":"Zellfarbe","v":3},{"$f":"Zellfarbe","v":6},{"$f":"Zellfarbe","v":6},{"$f":"Zellfarbe","v":3},{"$f":"Zellfarbe","v":3},{"$f":"Zellfarbe","v":6},{"$f":"Zellfarbe","v":6},{"$f":"Zellfarbe","v":6},{"$f":"Zellfarbe","v":6},{"$f":"Zellfarbe","v":3},{"$f":"Zellfarbe","v":6},{"$f":"Zellfarbe","v":6},{"$f":"Zellfarbe","v":6},{"$f":"Zellfarbe","v":6},{"$f":"Zellfarbe","v":6},{"$f":"Zellfarbe","v":3},{"$f":"Zellfarbe","v":6},{"$f":"Zellfarbe","v":6},{"$f":"Zellfarbe","v":6},{"$f":"Zellfarbe","v":6},{"$f":"Zellfarbe","v":6},null,null,0]
[null,null,null,null,null,null,null,null,22,null,6,null,null,6,9,null,null,null,9,null,null,null,2,null,null,0,null,3,null,null,null,0,1,null,3,null,null,null,null,null,null,null,null,null,null,null,null,null,null,null,{"$f":"Zellfarbe","v":3},{"$f":"Zellfarbe","v":3},{"$f":"Zellfarbe","v":6},{"$f":"Zellfarbe","v":3},{"$f":"Zellfarbe","v":3},{"$f":"Zellfarbe","v":3},{"$f":"Zellfarbe","v":3},{"$f":"Zellfarbe","v":3},{"$f":"Zellfarbe","v":3},{"$f":"Zellfarbe","v":3},{"$f":"Zellfarbe","v":6},{"$f":"Zellfarbe","v":6},{"$f":"Zellfarbe","v":6},{"$f":"Zellfarbe","v":6},{"$f":"Zellfarbe","v":6},{"$f":"Zellfarbe","v":6},{"$f":"Zellfarbe","v":6},{"$f":"Zellfarbe","v":3},{"$f":"Zellfarbe","v":6},{"$f":"Zellfarbe","v":6},{"$f":"Zellfarbe","v":6},{"$f":"Zellfarbe","v":6},{"$f":"Zellfarbe","v":6},{"$f":"Zellfarbe","v":3},{"$f":"Zellfarbe","v":6},{"$f":"Zellfarbe","v":6},{"$f":"Zellfarbe","v":6},{"$f":"Zellfarbe","v":6},{"$f":"Zellfarbe","v":6},{"$f":"Zellfarbe","v":6},null,null,0]
[null,null,null,null,null,null,null,null,23,null,null,null,null,null,8,9,null,9,8,null,null,0,null,null,0,1,null,null,null,0,1,1,3,null,3,null,null,null,null,null,null,null,null,null,null,null,null,null,null,null,{"$f":"Zellfarbe","v":3},{"$f":"Zellfarbe","v":3},{"$f":"Zellfarbe","v":6},{"$f":"Zellfarbe","v":3},{"$f":"Zellfarbe","v":3},{"$f":"Zellfarbe","v":3},{"$f":"Zellfarbe","v":3},{"$f":"Zellfarbe","v":3},{"$f":"Zellfarbe","v":3},{"$f":"Zellfarbe","v":3},{"$f":"Zellfarbe","v":6},{"$f":"Zellfarbe","v":6},{"$f":"Zellfarbe","v":6},{"$f":"Zellfarbe","v":6},{"$f":"Zellfarbe","v":6},{"$f":"Zellfarbe","v":6},{"$f":"Zellfarbe","v":6},{"$f":"Zellfarbe","v":3},{"$f":"Zellfarbe","v":6},{"$f":"Zellfarbe","v":6},{"$f":"Zellfarbe","v":6},{"$f":"Zellfarbe","v":6},{"$f":"Zellfarbe","v":6},{"$f":"Zellfarbe","v":6},{"$f":"Zellfarbe","v":3},{"$f":"Zellfarbe","v":6},{"$f":"Zellfarbe","v":6},{"$f":"Zellfarbe","v":6},{"$f":"Zellfarbe","v":6},{"$f":"Zellfarbe","v":6},null,null,0]
[null,null,null,null,null,null,null,null,24,null,null,null,null,null,null,null,null,null,null,null,null,null,null,null,null,null,3,null,null,2,null,null,null,null,null,null,null,null,null,null,null,null,null,null,null,null,null,null,null,null,{"$f":"Zellfarbe","v":3},{"$f":"Zellfarbe","v":3},{"$f":"Zellfarbe","v":3},{"$f":"Zellfarbe","v":6},{"$f":"Zellfarbe","v":3},{"$f":"Zellfarbe","v":3},{"$f":"Zellfarbe","v":3},{"$f":"Zellfarbe","v":3},{"$f":"Zellfarbe","v":3},{"$f":"Zellfarbe","v":6},{"$f":"Zellfarbe","v":6},{"$f":"Zellfarbe","v":6},{"$f":"Zellfarbe","v":6},{"$f":"Zellfarbe","v":6},{"$f":"Zellfarbe","v":6},{"$f":"Zellfarbe","v":6},{"$f":"Zellfarbe","v":3},{"$f":"Zellfarbe","v":6},{"$f":"Zellfarbe","v":6},{"$f":"Zellfarbe","v":6},{"$f":"Zellfarbe","v":6},{"$f":"Zellfarbe","v":3},{"$f":"Zellfarbe","v":6},{"$f":"Zellfarbe","v":3},{"$f":"Zellfarbe","v":6},{"$f":"Zellfarbe","v":6},{"$f":"Zellfarbe","v":6},{"$f":"Zellfarbe","v":6},{"$f":"Zellfarbe","v":6},{"$f":"Zellfarbe","v":6},null,null,0]
[null,null,null,null,null,null,null,null,25,null,null,6,5,null,null,5,6,5,null,3,null,null,3,null,3,null,null,2,1,null,2,3,3,null,2,null,null,null,null,null,null,null,null,null,null,null,null,null,null,null,{"$f":"Zellfarbe","v":3},{"$f":"Zellfarbe","v":3},{"$f":"Zellfarbe","v":3},{"$f":"Zellfarbe","v":3},{"$f":"Zellfarbe","v":6},{"$f":"Zellfarbe","v":3},{"$f":"Zellfarbe","v":3},{"$f":"Zellfarbe","v":3},{"$f":"Zellfarbe","v":6},{"$f":"Zellfarbe","v":3},{"$f":"Zellfarbe","v":3},{"$f":"Zellfarbe","v":3},{"$f":"Zellfarbe","v":3},{"$f":"Zellfarbe","v":3},{"$f":"Zellfarbe","v":3},{"$f":"Zellfarbe","v":3},{"$f":"Zellfarbe","v":6},{"$f":"Zellfarbe","v":6},{"$f":"Zellfarbe","v":3},{"$f":"Zellfarbe","v":6},{"$f":"Zellfarbe","v":3},{"$f":"Zellfarbe","v":6},{"$f":"Zellfarbe","v":3},{"$f":"Zellfarbe","v":6},{"$f":"Zellfarbe","v":3},{"$f":"Zellfarbe","v":6},{"$f":"Zellfarbe","v":6},{"$f":"Zellfarbe","v":6},{"$f":"Zellfarbe","v":6},{"$f":"Zellfarbe","v":6},null,null,0]
[null,null,null,null,null,null,null,null,26,null,null,null,null,null,null,null,null,null,null,null,null,null,null,null,null,null,null,null,null,null,null,null,null,null,null,null,null,null,null,null,null,null,null,null,null,null,null,null,null,null,{"$f":"Zellfarbe","v":6},{"$f":"Zellfarbe","v":6},{"$f":"Zellfarbe","v":6},{"$f":"Zellfarbe","v":6},{"$f":"Zellfarbe","v":6},{"$f":"Zellfarbe","v":6},{"$f":"Zellfarbe","v":6},{"$f":"Zellfarbe","v":6},{"$f":"Zellfarbe","v":6},{"$f":"Zellfarbe","v":6},{"$f":"Zellfarbe","v":6},{"$f":"Zellfarbe","v":6},{"$f":"Zellfarbe","v":6},{"$f":"Zellfarbe","v":6},{"$f":"Zellfarbe","v":6},{"$f":"Zellfarbe","v":6},{"$f":"Zellfarbe","v":6},{"$f":"Zellfarbe","v":6},{"$f":"Zellfarbe","v":6},{"$f":"Zellfarbe","v":6},{"$f":"Zellfarbe","v":6},{"$f":"Zellfarbe","v":6},{"$f":"Zellfarbe","v":6},{"$f":"Zellfarbe","v":6},{"$f":"Zellfarbe","v":6},{"$f":"Zellfarbe","v":6},{"$f":"Zellfarbe","v":6},{"$f":"Zellfarbe","v":6},{"$f":"Zellfarbe","v":6},{"$f":"Zellfarbe","v":6},null,null,0]
[null,null,null,null,null,null,null,null,27,null,null,null,null,null,null,null,null,null,null,null,null,null,null,null,null,null,null,null,null,null,null,null,null,null,null,null,null,null,null,null,null,null,null,null,null,null,null,null,null,null,{"$f":"Zellfarbe","v":6},{"$f":"Zellfarbe","v":6},{"$f":"Zellfarbe","v":6},{"$f":"Zellfarbe","v":6},{"$f":"Zellfarbe","v":6},{"$f":"Zellfarbe","v":6},{"$f":"Zellfarbe","v":6},{"$f":"Zellfarbe","v":6},{"$f":"Zellfarbe","v":6},{"$f":"Zellfarbe","v":6},{"$f":"Zellfarbe","v":6},{"$f":"Zellfarbe","v":6},{"$f":"Zellfarbe","v":6},{"$f":"Zellfarbe","v":6},{"$f":"Zellfarbe","v":6},{"$f":"Zellfarbe","v":6},{"$f":"Zellfarbe","v":6},{"$f":"Zellfarbe","v":6},{"$f":"Zellfarbe","v":6},{"$f":"Zellfarbe","v":6},{"$f":"Zellfarbe","v":6},{"$f":"Zellfarbe","v":6},{"$f":"Zellfarbe","v":6},{"$f":"Zellfarbe","v":6},{"$f":"Zellfarbe","v":6},{"$f":"Zellfarbe","v":6},{"$f":"Zellfarbe","v":6},{"$f":"Zellfarbe","v":6},{"$f":"Zellfarbe","v":6},{"$f":"Zellfarbe","v":6},null,null,0]
[null,null,null,null,null,null,null,null,28,null,null,null,null,null,null,null,null,null,null,null,null,null,null,null,null,null,null,null,null,null,null,null,null,null,null,null,null,null,null,null,null,null,null,null,null,null,null,null,null,null,{"$f":"Zellfarbe","v":6},{"$f":"Zellfarbe","v":6},{"$f":"Zellfarbe","v":6},{"$f":"Zellfarbe","v":6},{"$f":"Zellfarbe","v":6},{"$f":"Zellfarbe","v":6},{"$f":"Zellfarbe","v":6},{"$f":"Zellfarbe","v":6},{"$f":"Zellfarbe","v":6},{"$f":"Zellfarbe","v":6},{"$f":"Zellfarbe","v":6},{"$f":"Zellfarbe","v":6},{"$f":"Zellfarbe","v":6},{"$f":"Zellfarbe","v":6},{"$f":"Zellfarbe","v":6},{"$f":"Zellfarbe","v":6},{"$f":"Zellfarbe","v":6},{"$f":"Zellfarbe","v":6},{"$f":"Zellfarbe","v":6},{"$f":"Zellfarbe","v":6},{"$f":"Zellfarbe","v":6},{"$f":"Zellfarbe","v":6},{"$f":"Zellfarbe","v":6},{"$f":"Zellfarbe","v":6},{"$f":"Zellfarbe","v":6},{"$f":"Zellfarbe","v":6},{"$f":"Zellfarbe","v":6},{"$f":"Zellfarbe","v":6},{"$f":"Zellfarbe","v":6},{"$f":"Zellfarbe","v":6},null,null,0]
[null,null,null,null,null,null,null,null,29,null,null,null,null,null,null,null,null,null,null,null,null,null,null,null,null,null,null,null,null,null,null,null,null,null,null,null,null,null,null,null,null,null,null,null,null,null,null,null,null,null,{"$f":"Zellfarbe","v":6},{"$f":"Zellfarbe","v":6},{"$f":"Zellfarbe","v":6},{"$f":"Zellfarbe","v":6},{"$f":"Zellfarbe","v":6},{"$f":"Zellfarbe","v":6},{"$f":"Zellfarbe","v":6},{"$f":"Zellfarbe","v":6},{"$f":"Zellfarbe","v":6},{"$f":"Zellfarbe","v":6},{"$f":"Zellfarbe","v":6},{"$f":"Zellfarbe","v":6},{"$f":"Zellfarbe","v":6},{"$f":"Zellfarbe","v":6},{"$f":"Zellfarbe","v":6},{"$f":"Zellfarbe","v":6},{"$f":"Zellfarbe","v":6},{"$f":"Zellfarbe","v":6},{"$f":"Zellfarbe","v":6},{"$f":"Zellfarbe","v":6},{"$f":"Zellfarbe","v":6},{"$f":"Zellfarbe","v":6},{"$f":"Zellfarbe","v":6},{"$f":"Zellfarbe","v":6},{"$f":"Zellfarbe","v":6},{"$f":"Zellfarbe","v":6},{"$f":"Zellfarbe","v":6},{"$f":"Zellfarbe","v":6},{"$f":"Zellfarbe","v":6},{"$f":"Zellfarbe","v":6},null,null,0]
[null,null,null,null,null,null,null,null,30,null,null,null,null,null,null,null,null,null,null,null,null,null,null,null,null,null,null,null,null,null,null,null,null,null,null,null,null,null,null,null,null,null,null,null,null,null,null,null,null,null,{"$f":"Zellfarbe","v":6},{"$f":"Zellfarbe","v":6},{"$f":"Zellfarbe","v":6},{"$f":"Zellfarbe","v":6},{"$f":"Zellfarbe","v":6},{"$f":"Zellfarbe","v":6},{"$f":"Zellfarbe","v":6},{"$f":"Zellfarbe","v":6},{"$f":"Zellfarbe","v":6},{"$f":"Zellfarbe","v":6},{"$f":"Zellfarbe","v":6},{"$f":"Zellfarbe","v":6},{"$f":"Zellfarbe","v":6},{"$f":"Zellfarbe","v":6},{"$f":"Zellfarbe","v":6},{"$f":"Zellfarbe","v":6},{"$f":"Zellfarbe","v":6},{"$f":"Zellfarbe","v":6},{"$f":"Zellfarbe","v":6},{"$f":"Zellfarbe","v":6},{"$f":"Zellfarbe","v":6},{"$f":"Zellfarbe","v":6},{"$f":"Zellfarbe","v":6},{"$f":"Zellfarbe","v":6},{"$f":"Zellfarbe","v":6},{"$f":"Zellfarbe","v":6},{"$f":"Zellfarbe","v":6},{"$f":"Zellfarbe","v":6},{"$f":"Zellfarbe","v":6},{"$f":"Zellfarbe","v":6},null,null,0]
[null,null,null,null,null,null,null,null,31,null,null,null,null,null,null,null,null,null,null,null,null,null,null,null,null,null,null,null,null,null,null,null,null,null,null,null,null,null,null,null,null,null,null,null,null,null,null,null,null,null,{"$f":"Zellfarbe","v":6},{"$f":"Zellfarbe","v":6},{"$f":"Zellfarbe","v":6},{"$f":"Zellfarbe","v":6},{"$f":"Zellfarbe","v":6},{"$f":"Zellfarbe","v":6},{"$f":"Zellfarbe","v":6},{"$f":"Zellfarbe","v":6},{"$f":"Zellfarbe","v":6},{"$f":"Zellfarbe","v":6},{"$f":"Zellfarbe","v":6},{"$f":"Zellfarbe","v":6},{"$f":"Zellfarbe","v":6},{"$f":"Zellfarbe","v":6},{"$f":"Zellfarbe","v":6},{"$f":"Zellfarbe","v":6},{"$f":"Zellfarbe","v":6},{"$f":"Zellfarbe","v":6},{"$f":"Zellfarbe","v":6},{"$f":"Zellfarbe","v":6},{"$f":"Zellfarbe","v":6},{"$f":"Zellfarbe","v":6},{"$f":"Zellfarbe","v":6},{"$f":"Zellfarbe","v":6},{"$f":"Zellfarbe","v":6},{"$f":"Zellfarbe","v":6},{"$f":"Zellfarbe","v":6},{"$f":"Zellfarbe","v":6},{"$f":"Zellfarbe","v":6},{"$f":"Zellfarbe","v":6},null,null,0]
[null,null,null,null,null,null,null,null,32,null,null,null,null,null,null,null,null,null,null,null,null,null,null,null,null,null,null,null,null,null,null,null,null,null,null,null,null,null,null,null,null,null,null,null,null,null,null,null,null,null,{"$f":"Zellfarbe","v":6},{"$f":"Zellfarbe","v":6},{"$f":"Zellfarbe","v":6},{"$f":"Zellfarbe","v":6},{"$f":"Zellfarbe","v":6},{"$f":"Zellfarbe","v":6},{"$f":"Zellfarbe","v":6},{"$f":"Zellfarbe","v":6},{"$f":"Zellfarbe","v":6},{"$f":"Zellfarbe","v":6},{"$f":"Zellfarbe","v":6},{"$f":"Zellfarbe","v":6},{"$f":"Zellfarbe","v":6},{"$f":"Zellfarbe","v":6},{"$f":"Zellfarbe","v":6},{"$f":"Zellfarbe","v":6},{"$f":"Zellfarbe","v":6},{"$f":"Zellfarbe","v":6},{"$f":"Zellfarbe","v":6},{"$f":"Zellfarbe","v":6},{"$f":"Zellfarbe","v":6},{"$f":"Zellfarbe","v":6},{"$f":"Zellfarbe","v":6},{"$f":"Zellfarbe","v":6},{"$f":"Zellfarbe","v":6},{"$f":"Zellfarbe","v":6},{"$f":"Zellfarbe","v":6},{"$f":"Zellfarbe","v":6},{"$f":"Zellfarbe","v":6},{"$f":"Zellfarbe","v":6},null,null,0]
[null,null,null,null,null,null,null,null,33,null,null,null,null,null,null,null,null,null,null,null,null,null,null,null,null,null,null,null,null,null,null,null,null,null,null,null,null,null,null,null,null,null,null,null,null,null,null,null,null,null,{"$f":"Zellfarbe","v":6},{"$f":"Zellfarbe","v":6},{"$f":"Zellfarbe","v":6},{"$f":"Zellfarbe","v":6},{"$f":"Zellfarbe","v":6},{"$f":"Zellfarbe","v":6},{"$f":"Zellfarbe","v":6},{"$f":"Zellfarbe","v":6},{"$f":"Zellfarbe","v":6},{"$f":"Zellfarbe","v":6},{"$f":"Zellfarbe","v":6},{"$f":"Zellfarbe","v":6},{"$f":"Zellfarbe","v":6},{"$f":"Zellfarbe","v":6},{"$f":"Zellfarbe","v":6},{"$f":"Zellfarbe","v":6},{"$f":"Zellfarbe","v":6},{"$f":"Zellfarbe","v":6},{"$f":"Zellfarbe","v":6},{"$f":"Zellfarbe","v":6},{"$f":"Zellfarbe","v":6},{"$f":"Zellfarbe","v":6},{"$f":"Zellfarbe","v":6},{"$f":"Zellfarbe","v":6},{"$f":"Zellfarbe","v":6},{"$f":"Zellfarbe","v":6},{"$f":"Zellfarbe","v":6},{"$f":"Zellfarbe","v":6},{"$f":"Zellfarbe","v":6},{"$f":"Zellfarbe","v":6},null,null,0]
[null,null,null,null,null,null,null,null,34,null,null,null,null,null,null,null,null,null,null,null,null,null,null,null,null,null,null,null,null,null,null,null,null,null,null,null,null,null,null,null,null,null,null,null,null,null,null,null,null,null,{"$f":"Zellfarbe","v":6},{"$f":"Zellfarbe","v":6},{"$f":"Zellfarbe","v":6},{"$f":"Zellfarbe","v":6},{"$f":"Zellfarbe","v":6},{"$f":"Zellfarbe","v":6},{"$f":"Zellfarbe","v":6},{"$f":"Zellfarbe","v":6},{"$f":"Zellfarbe","v":6},{"$f":"Zellfarbe","v":6},{"$f":"Zellfarbe","v":6},{"$f":"Zellfarbe","v":6},{"$f":"Zellfarbe","v":6},{"$f":"Zellfarbe","v":6},{"$f":"Zellfarbe","v":6},{"$f":"Zellfarbe","v":6},{"$f":"Zellfarbe","v":6},{"$f":"Zellfarbe","v":6},{"$f":"Zellfarbe","v":6},{"$f":"Zellfarbe","v":6},{"$f":"Zellfarbe","v":6},{"$f":"Zellfarbe","v":6},{"$f":"Zellfarbe","v":6},{"$f":"Zellfarbe","v":6},{"$f":"Zellfarbe","v":6},{"$f":"Zellfarbe","v":6},{"$f":"Zellfarbe","v":6},{"$f":"Zellfarbe","v":6},{"$f":"Zellfarbe","v":6},{"$f":"Zellfarbe","v":6},null,null,0]
[null,null,null,null,null,null,null,null,35,null,null,null,null,null,null,null,null,null,null,null,null,null,null,null,null,null,null,null,null,null,null,null,null,null,null,null,null,null,null,null,null,null,null,null,null,null,null,null,null,null,{"$f":"Zellfarbe","v":6},{"$f":"Zellfarbe","v":6},{"$f":"Zellfarbe","v":6},{"$f":"Zellfarbe","v":6},{"$f":"Zellfarbe","v":6},{"$f":"Zellfarbe","v":6},{"$f":"Zellfarbe","v":6},{"$f":"Zellfarbe","v":6},{"$f":"Zellfarbe","v":6},{"$f":"Zellfarbe","v":6},{"$f":"Zellfarbe","v":6},{"$f":"Zellfarbe","v":6},{"$f":"Zellfarbe","v":6},{"$f":"Zellfarbe","v":6},{"$f":"Zellfarbe","v":6},{"$f":"Zellfarbe","v":6},{"$f":"Zellfarbe","v":6},{"$f":"Zellfarbe","v":6},{"$f":"Zellfarbe","v":6},{"$f":"Zellfarbe","v":6},{"$f":"Zellfarbe","v":6},{"$f":"Zellfarbe","v":6},{"$f":"Zellfarbe","v":6},{"$f":"Zellfarbe","v":6},{"$f":"Zellfarbe","v":6},{"$f":"Zellfarbe","v":6},{"$f":"Zellfarbe","v":6},{"$f":"Zellfarbe","v":6},{"$f":"Zellfarbe","v":6},{"$f":"Zellfarbe","v":6},null,null,0]
[null,null,null,null,null,null,null,null,36,null,null,null,null,null,null,null,null,null,null,null,null,null,null,null,null,null,null,null,null,null,null,null,null,null,null,null,null,null,null,null,null,null,null,null,null,null,null,null,null,null,{"$f":"Zellfarbe","v":6},{"$f":"Zellfarbe","v":6},{"$f":"Zellfarbe","v":6},{"$f":"Zellfarbe","v":6},{"$f":"Zellfarbe","v":6},{"$f":"Zellfarbe","v":6},{"$f":"Zellfarbe","v":6},{"$f":"Zellfarbe","v":6},{"$f":"Zellfarbe","v":6},{"$f":"Zellfarbe","v":6},{"$f":"Zellfarbe","v":6},{"$f":"Zellfarbe","v":6},{"$f":"Zellfarbe","v":6},{"$f":"Zellfarbe","v":6},{"$f":"Zellfarbe","v":6},{"$f":"Zellfarbe","v":6},{"$f":"Zellfarbe","v":6},{"$f":"Zellfarbe","v":6},{"$f":"Zellfarbe","v":6},{"$f":"Zellfarbe","v":6},{"$f":"Zellfarbe","v":6},{"$f":"Zellfarbe","v":6},{"$f":"Zellfarbe","v":6},{"$f":"Zellfarbe","v":6},{"$f":"Zellfarbe","v":6},{"$f":"Zellfarbe","v":6},{"$f":"Zellfarbe","v":6},{"$f":"Zellfarbe","v":6},{"$f":"Zellfarbe","v":6},{"$f":"Zellfarbe","v":6},null,null,0]
[null,null,null,null,null,null,null,null,37,null,null,null,null,null,null,null,null,null,null,null,null,null,null,null,null,null,null,null,null,null,null,null,null,null,null,null,null,null,null,null,null,null,null,null,null,null,null,null,null,null,{"$f":"Zellfarbe","v":6},{"$f":"Zellfarbe","v":6},{"$f":"Zellfarbe","v":6},{"$f":"Zellfarbe","v":6},{"$f":"Zellfarbe","v":6},{"$f":"Zellfarbe","v":6},{"$f":"Zellfarbe","v":6},{"$f":"Zellfarbe","v":6},{"$f":"Zellfarbe","v":6},{"$f":"Zellfarbe","v":6},{"$f":"Zellfarbe","v":6},{"$f":"Zellfarbe","v":6},{"$f":"Zellfarbe","v":6},{"$f":"Zellfarbe","v":6},{"$f":"Zellfarbe","v":6},{"$f":"Zellfarbe","v":6},{"$f":"Zellfarbe","v":6},{"$f":"Zellfarbe","v":6},{"$f":"Zellfarbe","v":6},{"$f":"Zellfarbe","v":6},{"$f":"Zellfarbe","v":6},{"$f":"Zellfarbe","v":6},{"$f":"Zellfarbe","v":6},{"$f":"Zellfarbe","v":6},{"$f":"Zellfarbe","v":6},{"$f":"Zellfarbe","v":6},{"$f":"Zellfarbe","v":6},{"$f":"Zellfarbe","v":6},{"$f":"Zellfarbe","v":6},{"$f":"Zellfarbe","v":6},null,null,0]
[null,null,null,null,null,null,null,null,38,null,null,null,null,null,null,null,null,null,null,null,null,null,null,null,null,null,null,null,null,null,null,null,null,null,null,null,null,null,null,null,null,null,null,null,null,null,null,null,null,null,{"$f":"Zellfarbe","v":6},{"$f":"Zellfarbe","v":6},{"$f":"Zellfarbe","v":6},{"$f":"Zellfarbe","v":6},{"$f":"Zellfarbe","v":6},{"$f":"Zellfarbe","v":6},{"$f":"Zellfarbe","v":6},{"$f":"Zellfarbe","v":6},{"$f":"Zellfarbe","v":6},{"$f":"Zellfarbe","v":6},{"$f":"Zellfarbe","v":6},{"$f":"Zellfarbe","v":6},{"$f":"Zellfarbe","v":6},{"$f":"Zellfarbe","v":6},{"$f":"Zellfarbe","v":6},{"$f":"Zellfarbe","v":6},{"$f":"Zellfarbe","v":6},{"$f":"Zellfarbe","v":6},{"$f":"Zellfarbe","v":6},{"$f":"Zellfarbe","v":6},{"$f":"Zellfarbe","v":6},{"$f":"Zellfarbe","v":6},{"$f":"Zellfarbe","v":6},{"$f":"Zellfarbe","v":6},{"$f":"Zellfarbe","v":6},{"$f":"Zellfarbe","v":6},{"$f":"Zellfarbe","v":6},{"$f":"Zellfarbe","v":6},{"$f":"Zellfarbe","v":6},{"$f":"Zellfarbe","v":6},null,null,0]
[null,null,null,null,null,null,null,null,39,null,null,null,null,null,null,null,null,null,null,null,null,null,null,null,null,null,null,null,null,null,null,null,null,null,null,null,null,null,null,null,null,null,null,null,null,null,null,null,null,null,{"$f":"Zellfarbe","v":6},{"$f":"Zellfarbe","v":6},{"$f":"Zellfarbe","v":6},{"$f":"Zellfarbe","v":6},{"$f":"Zellfarbe","v":6},{"$f":"Zellfarbe","v":6},{"$f":"Zellfarbe","v":6},{"$f":"Zellfarbe","v":6},{"$f":"Zellfarbe","v":6},{"$f":"Zellfarbe","v":6},{"$f":"Zellfarbe","v":6},{"$f":"Zellfarbe","v":6},{"$f":"Zellfarbe","v":6},{"$f":"Zellfarbe","v":6},{"$f":"Zellfarbe","v":6},{"$f":"Zellfarbe","v":6},{"$f":"Zellfarbe","v":6},{"$f":"Zellfarbe","v":6},{"$f":"Zellfarbe","v":6},{"$f":"Zellfarbe","v":6},{"$f":"Zellfarbe","v":6},{"$f":"Zellfarbe","v":6},{"$f":"Zellfarbe","v":6},{"$f":"Zellfarbe","v":6},{"$f":"Zellfarbe","v":6},{"$f":"Zellfarbe","v":6},{"$f":"Zellfarbe","v":6},{"$f":"Zellfarbe","v":6},{"$f":"Zellfarbe","v":6},{"$f":"Zellfarbe","v":6},null,null,0]
[null,null,null,null,null,null,null,null,40,null,null,null,null,null,null,null,null,null,null,null,null,null,null,null,null,null,null,null,null,null,null,null,null,null,null,null,null,null,null,null,null,null,null,null,null,null,null,null,null,null,{"$f":"Zellfarbe","v":6},{"$f":"Zellfarbe","v":6},{"$f":"Zellfarbe","v":6},{"$f":"Zellfarbe","v":6},{"$f":"Zellfarbe","v":6},{"$f":"Zellfarbe","v":6},{"$f":"Zellfarbe","v":6},{"$f":"Zellfarbe","v":6},{"$f":"Zellfarbe","v":6},{"$f":"Zellfarbe","v":6},{"$f":"Zellfarbe","v":6},{"$f":"Zellfarbe","v":6},{"$f":"Zellfarbe","v":6},{"$f":"Zellfarbe","v":6},{"$f":"Zellfarbe","v":6},{"$f":"Zellfarbe","v":6},{"$f":"Zellfarbe","v":6},{"$f":"Zellfarbe","v":6},{"$f":"Zellfarbe","v":6},{"$f":"Zellfarbe","v":6},{"$f":"Zellfarbe","v":6},{"$f":"Zellfarbe","v":6},{"$f":"Zellfarbe","v":6},{"$f":"Zellfarbe","v":6},{"$f":"Zellfarbe","v":6},{"$f":"Zellfarbe","v":6},{"$f":"Zellfarbe","v":6},{"$f":"Zellfarbe","v":6},{"$f":"Zellfarbe","v":6},{"$f":"Zellfarbe","v":6},null,null,0]
[null,null,null,null,null,null,null,null,41,null,null,null,null,null,null,null,null,null,null,null,null,null,null,null,null,null,null,null,null,null,null,null,null,null,null,null,null,null,null,null,null,null,null,null,null,null,null,null,null,null,{"$f":"Zellfarbe","v":6},{"$f":"Zellfarbe","v":6},{"$f":"Zellfarbe","v":6},{"$f":"Zellfarbe","v":6},{"$f":"Zellfarbe","v":6},{"$f":"Zellfarbe","v":6},{"$f":"Zellfarbe","v":6},{"$f":"Zellfarbe","v":6},{"$f":"Zellfarbe","v":6},{"$f":"Zellfarbe","v":6},{"$f":"Zellfarbe","v":6},{"$f":"Zellfarbe","v":6},{"$f":"Zellfarbe","v":6},{"$f":"Zellfarbe","v":6},{"$f":"Zellfarbe","v":6},{"$f":"Zellfarbe","v":6},{"$f":"Zellfarbe","v":6},{"$f":"Zellfarbe","v":6},{"$f":"Zellfarbe","v":6},{"$f":"Zellfarbe","v":6},{"$f":"Zellfarbe","v":6},{"$f":"Zellfarbe","v":6},{"$f":"Zellfarbe","v":6},{"$f":"Zellfarbe","v":6},{"$f":"Zellfarbe","v":6},{"$f":"Zellfarbe","v":6},{"$f":"Zellfarbe","v":6},{"$f":"Zellfarbe","v":6},{"$f":"Zellfarbe","v":6},{"$f":"Zellfarbe","v":6},null,null,0]
[null,null,null,null,null,null,null,null,42,null,null,null,null,null,null,null,null,null,null,null,null,null,null,null,null,null,null,null,null,null,null,null,null,null,null,null,null,null,null,null,null,null,null,null,null,null,null,null,null,null,{"$f":"Zellfarbe","v":6},{"$f":"Zellfarbe","v":6},{"$f":"Zellfarbe","v":6},{"$f":"Zellfarbe","v":6},{"$f":"Zellfarbe","v":6},{"$f":"Zellfarbe","v":6},{"$f":"Zellfarbe","v":6},{"$f":"Zellfarbe","v":6},{"$f":"Zellfarbe","v":6},{"$f":"Zellfarbe","v":6},{"$f":"Zellfarbe","v":6},{"$f":"Zellfarbe","v":6},{"$f":"Zellfarbe","v":6},{"$f":"Zellfarbe","v":6},{"$f":"Zellfarbe","v":6},{"$f":"Zellfarbe","v":6},{"$f":"Zellfarbe","v":6},{"$f":"Zellfarbe","v":6},{"$f":"Zellfarbe","v":6},{"$f":"Zellfarbe","v":6},{"$f":"Zellfarbe","v":6},{"$f":"Zellfarbe","v":6},{"$f":"Zellfarbe","v":6},{"$f":"Zellfarbe","v":6},{"$f":"Zellfarbe","v":6},{"$f":"Zellfarbe","v":6},{"$f":"Zellfarbe","v":6},{"$f":"Zellfarbe","v":6},{"$f":"Zellfarbe","v":6},{"$f":"Zellfarbe","v":6},null,null,0]
[null,null,null,null,null,null,null,null,43,null,null,null,null,null,null,null,null,null,null,null,null,null,null,null,null,null,null,null,null,null,null,null,null,null,null,null,null,null,null,null,null,null,null,null,null,null,null,null,null,null,{"$f":"Zellfarbe","v":6},{"$f":"Zellfarbe","v":6},{"$f":"Zellfarbe","v":6},{"$f":"Zellfarbe","v":6},{"$f":"Zellfarbe","v":6},{"$f":"Zellfarbe","v":6},{"$f":"Zellfarbe","v":6},{"$f":"Zellfarbe","v":6},{"$f":"Zellfarbe","v":6},{"$f":"Zellfarbe","v":6},{"$f":"Zellfarbe","v":6},{"$f":"Zellfarbe","v":6},{"$f":"Zellfarbe","v":6},{"$f":"Zellfarbe","v":6},{"$f":"Zellfarbe","v":6},{"$f":"Zellfarbe","v":6},{"$f":"Zellfarbe","v":6},{"$f":"Zellfarbe","v":6},{"$f":"Zellfarbe","v":6},{"$f":"Zellfarbe","v":6},{"$f":"Zellfarbe","v":6},{"$f":"Zellfarbe","v":6},{"$f":"Zellfarbe","v":6},{"$f":"Zellfarbe","v":6},{"$f":"Zellfarbe","v":6},{"$f":"Zellfarbe","v":6},{"$f":"Zellfarbe","v":6},{"$f":"Zellfarbe","v":6},{"$f":"Zellfarbe","v":6},{"$f":"Zellfarbe","v":6},null,null,0]
[null,null,null,null,null,null,null,null,44,null,null,null,null,null,null,null,null,null,null,null,null,null,null,null,null,null,null,null,null,null,null,null,null,null,null,null,null,null,null,null,null,null,null,null,null,null,null,null,null,null,{"$f":"Zellfarbe","v":6},{"$f":"Zellfarbe","v":6},{"$f":"Zellfarbe","v":6},{"$f":"Zellfarbe","v":6},{"$f":"Zellfarbe","v":6},{"$f":"Zellfarbe","v":6},{"$f":"Zellfarbe","v":6},{"$f":"Zellfarbe","v":6},{"$f":"Zellfarbe","v":6},{"$f":"Zellfarbe","v":6},{"$f":"Zellfarbe","v":6},{"$f":"Zellfarbe","v":6},{"$f":"Zellfarbe","v":6},{"$f":"Zellfarbe","v":6},{"$f":"Zellfarbe","v":6},{"$f":"Zellfarbe","v":6},{"$f":"Zellfarbe","v":6},{"$f":"Zellfarbe","v":6},{"$f":"Zellfarbe","v":6},{"$f":"Zellfarbe","v":6},{"$f":"Zellfarbe","v":6},{"$f":"Zellfarbe","v":6},{"$f":"Zellfarbe","v":6},{"$f":"Zellfarbe","v":6},{"$f":"Zellfarbe","v":6},{"$f":"Zellfarbe","v":6},{"$f":"Zellfarbe","v":6},{"$f":"Zellfarbe","v":6},{"$f":"Zellfarbe","v":6},{"$f":"Zellfarbe","v":6},null,null,0]
[null,null,null,null,null,null,null,null,45,null,null,null,null,null,null,null,null,null,null,null,null,null,null,null,null,null,null,null,null,null,null,null,null,null,null,null,null,null,null,null,null,null,null,null,null,null,null,null,null,null,{"$f":"Zellfarbe","v":6},{"$f":"Zellfarbe","v":6},{"$f":"Zellfarbe","v":6},{"$f":"Zellfarbe","v":6},{"$f":"Zellfarbe","v":6},{"$f":"Zellfarbe","v":6},{"$f":"Zellfarbe","v":6},{"$f":"Zellfarbe","v":6},{"$f":"Zellfarbe","v":6},{"$f":"Zellfarbe","v":6},{"$f":"Zellfarbe","v":6},{"$f":"Zellfarbe","v":6},{"$f":"Zellfarbe","v":6},{"$f":"Zellfarbe","v":6},{"$f":"Zellfarbe","v":6},{"$f":"Zellfarbe","v":6},{"$f":"Zellfarbe","v":6},{"$f":"Zellfarbe","v":6},{"$f":"Zellfarbe","v":6},{"$f":"Zellfarbe","v":6},{"$f":"Zellfarbe","v":6},{"$f":"Zellfarbe","v":6},{"$f":"Zellfarbe","v":6},{"$f":"Zellfarbe","v":6},{"$f":"Zellfarbe","v":6},{"$f":"Zellfarbe","v":6},{"$f":"Zellfarbe","v":6},{"$f":"Zellfarbe","v":6},{"$f":"Zellfarbe","v":6},{"$f":"Zellfarbe","v":6},null,null,0]
[null,null,null,null,null,null,null,null,46,null,null,null,null,null,null,null,null,null,null,null,null,null,null,null,null,null,null,null,null,null,null,null,null,null,null,null,null,null,null,null,null,null,null,null,null,null,null,null,null,null,{"$f":"Zellfarbe","v":6},{"$f":"Zellfarbe","v":6},{"$f":"Zellfarbe","v":6},{"$f":"Zellfarbe","v":6},{"$f":"Zellfarbe","v":6},{"$f":"Zellfarbe","v":6},{"$f":"Zellfarbe","v":6},{"$f":"Zellfarbe","v":6},{"$f":"Zellfarbe","v":6},{"$f":"Zellfarbe","v":6},{"$f":"Zellfarbe","v":6},{"$f":"Zellfarbe","v":6},{"$f":"Zellfarbe","v":6},{"$f":"Zellfarbe","v":6},{"$f":"Zellfarbe","v":6},{"$f":"Zellfarbe","v":6},{"$f":"Zellfarbe","v":6},{"$f":"Zellfarbe","v":6},{"$f":"Zellfarbe","v":6},{"$f":"Zellfarbe","v":6},{"$f":"Zellfarbe","v":6},{"$f":"Zellfarbe","v":6},{"$f":"Zellfarbe","v":6},{"$f":"Zellfarbe","v":6},{"$f":"Zellfarbe","v":6},{"$f":"Zellfarbe","v":6},{"$f":"Zellfarbe","v":6},{"$f":"Zellfarbe","v":6},{"$f":"Zellfarbe","v":6},{"$f":"Zellfarbe","v":6},null,null,0]
[null,null,null,null,null,null,null,null,47,null,null,null,null,null,null,null,null,null,null,null,null,null,null,null,null,null,null,null,null,null,null,null,null,null,null,null,null,null,null,null,null,null,null,null,null,null,null,null,null,null,{"$f":"Zellfarbe","v":6},{"$f":"Zellfarbe","v":6},{"$f":"Zellfarbe","v":6},{"$f":"Zellfarbe","v":6},{"$f":"Zellfarbe","v":6},{"$f":"Zellfarbe","v":6},{"$f":"Zellfarbe","v":6},{"$f":"Zellfarbe","v":6},{"$f":"Zellfarbe","v":6},{"$f":"Zellfarbe","v":6},{"$f":"Zellfarbe","v":6},{"$f":"Zellfarbe","v":6},{"$f":"Zellfarbe","v":6},{"$f":"Zellfarbe","v":6},{"$f":"Zellfarbe","v":6},{"$f":"Zellfarbe","v":6},{"$f":"Zellfarbe","v":6},{"$f":"Zellfarbe","v":6},{"$f":"Zellfarbe","v":6},{"$f":"Zellfarbe","v":6},{"$f":"Zellfarbe","v":6},{"$f":"Zellfarbe","v":6},{"$f":"Zellfarbe","v":6},{"$f":"Zellfarbe","v":6},{"$f":"Zellfarbe","v":6},{"$f":"Zellfarbe","v":6},{"$f":"Zellfarbe","v":6},{"$f":"Zellfarbe","v":6},{"$f":"Zellfarbe","v":6},{"$f":"Zellfarbe","v":6},null,null,0]
[null,null,null,null,null,null,null,null,48,null,null,null,null,null,null,null,null,null,null,null,null,null,null,null,null,null,null,null,null,null,null,null,null,null,null,null,null,null,null,null,null,null,null,null,null,null,null,null,null,null,{"$f":"Zellfarbe","v":6},{"$f":"Zellfarbe","v":6},{"$f":"Zellfarbe","v":6},{"$f":"Zellfarbe","v":6},{"$f":"Zellfarbe","v":6},{"$f":"Zellfarbe","v":6},{"$f":"Zellfarbe","v":6},{"$f":"Zellfarbe","v":6},{"$f":"Zellfarbe","v":6},{"$f":"Zellfarbe","v":6},{"$f":"Zellfarbe","v":6},{"$f":"Zellfarbe","v":6},{"$f":"Zellfarbe","v":6},{"$f":"Zellfarbe","v":6},{"$f":"Zellfarbe","v":6},{"$f":"Zellfarbe","v":6},{"$f":"Zellfarbe","v":6},{"$f":"Zellfarbe","v":6},{"$f":"Zellfarbe","v":6},{"$f":"Zellfarbe","v":6},{"$f":"Zellfarbe","v":6},{"$f":"Zellfarbe","v":6},{"$f":"Zellfarbe","v":6},{"$f":"Zellfarbe","v":6},{"$f":"Zellfarbe","v":6},{"$f":"Zellfarbe","v":6},{"$f":"Zellfarbe","v":6},{"$f":"Zellfarbe","v":6},{"$f":"Zellfarbe","v":6},{"$f":"Zellfarbe","v":6},null,null,0]
[null,null,null,null,null,null,null,null,49,null,null,null,null,null,null,null,null,null,null,null,null,null,null,null,null,null,null,null,null,null,null,null,null,null,null,null,null,null,null,null,null,null,null,null,null,null,null,null,null,null,{"$f":"Zellfarbe","v":6},{"$f":"Zellfarbe","v":6},{"$f":"Zellfarbe","v":6},{"$f":"Zellfarbe","v":6},{"$f":"Zellfarbe","v":6},{"$f":"Zellfarbe","v":6},{"$f":"Zellfarbe","v":6},{"$f":"Zellfarbe","v":6},{"$f":"Zellfarbe","v":6},{"$f":"Zellfarbe","v":6},{"$f":"Zellfarbe","v":6},{"$f":"Zellfarbe","v":6},{"$f":"Zellfarbe","v":6},{"$f":"Zellfarbe","v":6},{"$f":"Zellfarbe","v":6},{"$f":"Zellfarbe","v":6},{"$f":"Zellfarbe","v":6},{"$f":"Zellfarbe","v":6},{"$f":"Zellfarbe","v":6},{"$f":"Zellfarbe","v":6},{"$f":"Zellfarbe","v":6},{"$f":"Zellfarbe","v":6},{"$f":"Zellfarbe","v":6},{"$f":"Zellfarbe","v":6},{"$f":"Zellfarbe","v":6},{"$f":"Zellfarbe","v":6},{"$f":"Zellfarbe","v":6},{"$f":"Zellfarbe","v":6},{"$f":"Zellfarbe","v":6},{"$f":"Zellfarbe","v":6},null,null,0]
[null,null,null,null,null,null,null,null,50,null,null,null,null,null,null,null,null,null,null,null,null,null,null,null,null,null,null,null,null,null,null,null,null,null,null,null,null,null,null,null,null,null,null,null,null,null,null,null,null,null,{"$f":"Zellfarbe","v":6},{"$f":"Zellfarbe","v":6},{"$f":"Zellfarbe","v":6},{"$f":"Zellfarbe","v":6},{"$f":"Zellfarbe","v":6},{"$f":"Zellfarbe","v":6},{"$f":"Zellfarbe","v":6},{"$f":"Zellfarbe","v":6},{"$f":"Zellfarbe","v":6},{"$f":"Zellfarbe","v":6},{"$f":"Zellfarbe","v":6},{"$f":"Zellfarbe","v":6},{"$f":"Zellfarbe","v":6},{"$f":"Zellfarbe","v":6},{"$f":"Zellfarbe","v":6},{"$f":"Zellfarbe","v":6},{"$f":"Zellfarbe","v":6},{"$f":"Zellfarbe","v":6},{"$f":"Zellfarbe","v":6},{"$f":"Zellfarbe","v":6},{"$f":"Zellfarbe","v":6},{"$f":"Zellfarbe","v":6},{"$f":"Zellfarbe","v":6},{"$f":"Zellfarbe","v":6},{"$f":"Zellfarbe","v":6},{"$f":"Zellfarbe","v":6},{"$f":"Zellfarbe","v":6},{"$f":"Zellfarbe","v":6},{"$f":"Zellfarbe","v":6},{"$f":"Zellfarbe","v":6},null,null,0]
[null,null,null,null,null,null,null,null,51,null,null,null,null,null,null,null,null,null,null,null,null,null,null,null,null,null,null,null,null,null,null,null,null,null,null,null,null,null,null,null,null,null,null,null,null,null,null,null,null,null,{"$f":"Zellfarbe","v":6},{"$f":"Zellfarbe","v":6},{"$f":"Zellfarbe","v":6},{"$f":"Zellfarbe","v":6},{"$f":"Zellfarbe","v":6},{"$f":"Zellfarbe","v":6},{"$f":"Zellfarbe","v":6},{"$f":"Zellfarbe","v":6},{"$f":"Zellfarbe","v":6},{"$f":"Zellfarbe","v":6},{"$f":"Zellfarbe","v":6},{"$f":"Zellfarbe","v":6},{"$f":"Zellfarbe","v":6},{"$f":"Zellfarbe","v":6},{"$f":"Zellfarbe","v":6},{"$f":"Zellfarbe","v":6},{"$f":"Zellfarbe","v":6},{"$f":"Zellfarbe","v":6},{"$f":"Zellfarbe","v":6},{"$f":"Zellfarbe","v":6},{"$f":"Zellfarbe","v":6},{"$f":"Zellfarbe","v":6},{"$f":"Zellfarbe","v":6},{"$f":"Zellfarbe","v":6},{"$f":"Zellfarbe","v":6},{"$f":"Zellfarbe","v":6},{"$f":"Zellfarbe","v":6},{"$f":"Zellfarbe","v":6},{"$f":"Zellfarbe","v":6},{"$f":"Zellfarbe","v":6},null,null,0]
[null,null,null,null,null,null,null,null,52,null,null,null,null,null,null,null,null,null,null,null,null,null,null,null,null,null,null,null,null,null,null,null,null,null,null,null,null,null,null,null,null,null,null,null,null,null,null,null,null,null,{"$f":"Zellfarbe","v":6},{"$f":"Zellfarbe","v":6},{"$f":"Zellfarbe","v":6},{"$f":"Zellfarbe","v":6},{"$f":"Zellfarbe","v":6},{"$f":"Zellfarbe","v":6},{"$f":"Zellfarbe","v":6},{"$f":"Zellfarbe","v":6},{"$f":"Zellfarbe","v":6},{"$f":"Zellfarbe","v":6},{"$f":"Zellfarbe","v":6},{"$f":"Zellfarbe","v":6},{"$f":"Zellfarbe","v":6},{"$f":"Zellfarbe","v":6},{"$f":"Zellfarbe","v":6},{"$f":"Zellfarbe","v":6},{"$f":"Zellfarbe","v":6},{"$f":"Zellfarbe","v":6},{"$f":"Zellfarbe","v":6},{"$f":"Zellfarbe","v":6},{"$f":"Zellfarbe","v":6},{"$f":"Zellfarbe","v":6},{"$f":"Zellfarbe","v":6},{"$f":"Zellfarbe","v":6},{"$f":"Zellfarbe","v":6},{"$f":"Zellfarbe","v":6},{"$f":"Zellfarbe","v":6},{"$f":"Zellfarbe","v":6},{"$f":"Zellfarbe","v":6},{"$f":"Zellfarbe","v":6},null,null,0]
[null,null,null,null,null,null,null,null,53,null,null,null,null,null,null,null,null,null,null,null,null,null,null,null,null,null,null,null,null,null,null,null,null,null,null,null,null,null,null,null,null,null,null,null,null,null,null,null,null,null,{"$f":"Zellfarbe","v":6},{"$f":"Zellfarbe","v":6},{"$f":"Zellfarbe","v":6},{"$f":"Zellfarbe","v":6},{"$f":"Zellfarbe","v":6},{"$f":"Zellfarbe","v":6},{"$f":"Zellfarbe","v":6},{"$f":"Zellfarbe","v":6},{"$f":"Zellfarbe","v":6},{"$f":"Zellfarbe","v":6},{"$f":"Zellfarbe","v":6},{"$f":"Zellfarbe","v":6},{"$f":"Zellfarbe","v":6},{"$f":"Zellfarbe","v":6},{"$f":"Zellfarbe","v":6},{"$f":"Zellfarbe","v":6},{"$f":"Zellfarbe","v":6},{"$f":"Zellfarbe","v":6},{"$f":"Zellfarbe","v":6},{"$f":"Zellfarbe","v":6},{"$f":"Zellfarbe","v":6},{"$f":"Zellfarbe","v":6},{"$f":"Zellfarbe","v":6},{"$f":"Zellfarbe","v":6},{"$f":"Zellfarbe","v":6},{"$f":"Zellfarbe","v":6},{"$f":"Zellfarbe","v":6},{"$f":"Zellfarbe","v":6},{"$f":"Zellfarbe","v":6},{"$f":"Zellfarbe","v":6},null,null,0]
[null,null,null,null,null,null,null,null,54,null,null,null,null,null,null,null,null,null,null,null,null,null,null,null,null,null,null,null,null,null,null,null,null,null,null,null,null,null,null,null,null,null,null,null,null,null,null,null,null,null,{"$f":"Zellfarbe","v":6},{"$f":"Zellfarbe","v":6},{"$f":"Zellfarbe","v":6},{"$f":"Zellfarbe","v":6},{"$f":"Zellfarbe","v":6},{"$f":"Zellfarbe","v":6},{"$f":"Zellfarbe","v":6},{"$f":"Zellfarbe","v":6},{"$f":"Zellfarbe","v":6},{"$f":"Zellfarbe","v":6},{"$f":"Zellfarbe","v":6},{"$f":"Zellfarbe","v":6},{"$f":"Zellfarbe","v":6},{"$f":"Zellfarbe","v":6},{"$f":"Zellfarbe","v":6},{"$f":"Zellfarbe","v":6},{"$f":"Zellfarbe","v":6},{"$f":"Zellfarbe","v":6},{"$f":"Zellfarbe","v":6},{"$f":"Zellfarbe","v":6},{"$f":"Zellfarbe","v":6},{"$f":"Zellfarbe","v":6},{"$f":"Zellfarbe","v":6},{"$f":"Zellfarbe","v":6},{"$f":"Zellfarbe","v":6},{"$f":"Zellfarbe","v":6},{"$f":"Zellfarbe","v":6},{"$f":"Zellfarbe","v":6},{"$f":"Zellfarbe","v":6},{"$f":"Zellfarbe","v":6},null,null,0]
[null,null,null,null,null,null,null,null,55,null,null,null,null,null,null,null,null,null,null,null,null,null,null,null,null,null,null,null,null,null,null,null,null,null,null,null,null,null,null,null,null,null,null,null,null,null,null,null,null,null,{"$f":"Zellfarbe","v":6},{"$f":"Zellfarbe","v":6},{"$f":"Zellfarbe","v":6},{"$f":"Zellfarbe","v":6},{"$f":"Zellfarbe","v":6},{"$f":"Zellfarbe","v":6},{"$f":"Zellfarbe","v":6},{"$f":"Zellfarbe","v":6},{"$f":"Zellfarbe","v":6},{"$f":"Zellfarbe","v":6},{"$f":"Zellfarbe","v":6},{"$f":"Zellfarbe","v":6},{"$f":"Zellfarbe","v":6},{"$f":"Zellfarbe","v":6},{"$f":"Zellfarbe","v":6},{"$f":"Zellfarbe","v":6},{"$f":"Zellfarbe","v":6},{"$f":"Zellfarbe","v":6},{"$f":"Zellfarbe","v":6},{"$f":"Zellfarbe","v":6},{"$f":"Zellfarbe","v":6},{"$f":"Zellfarbe","v":6},{"$f":"Zellfarbe","v":6},{"$f":"Zellfarbe","v":6},{"$f":"Zellfarbe","v":6},{"$f":"Zellfarbe","v":6},{"$f":"Zellfarbe","v":6},{"$f":"Zellfarbe","v":6},{"$f":"Zellfarbe","v":6},{"$f":"Zellfarbe","v":6},null,null,0]
[null,null,null,null,null,null,null,null,56,null,null,null,null,null,null,null,null,null,null,null,null,null,null,null,null,null,null,null,null,null,null,null,null,null,null,null,null,null,null,null,null,null,null,null,null,null,null,null,null,null,{"$f":"Zellfarbe","v":6},{"$f":"Zellfarbe","v":6},{"$f":"Zellfarbe","v":6},{"$f":"Zellfarbe","v":6},{"$f":"Zellfarbe","v":6},{"$f":"Zellfarbe","v":6},{"$f":"Zellfarbe","v":6},{"$f":"Zellfarbe","v":6},{"$f":"Zellfarbe","v":6},{"$f":"Zellfarbe","v":6},{"$f":"Zellfarbe","v":6},{"$f":"Zellfarbe","v":6},{"$f":"Zellfarbe","v":6},{"$f":"Zellfarbe","v":6},{"$f":"Zellfarbe","v":6},{"$f":"Zellfarbe","v":6},{"$f":"Zellfarbe","v":6},{"$f":"Zellfarbe","v":6},{"$f":"Zellfarbe","v":6},{"$f":"Zellfarbe","v":6},{"$f":"Zellfarbe","v":6},{"$f":"Zellfarbe","v":6},{"$f":"Zellfarbe","v":6},{"$f":"Zellfarbe","v":6},{"$f":"Zellfarbe","v":6},{"$f":"Zellfarbe","v":6},{"$f":"Zellfarbe","v":6},{"$f":"Zellfarbe","v":6},{"$f":"Zellfarbe","v":6},{"$f":"Zellfarbe","v":6},null,null,0]
[null,null,null,null,null,null,null,null,57,null,null,null,null,null,null,null,null,null,null,null,null,null,null,null,null,null,null,null,null,null,null,null,null,null,null,null,null,null,null,null,null,null,null,null,null,null,null,null,null,null,{"$f":"Zellfarbe","v":6},{"$f":"Zellfarbe","v":6},{"$f":"Zellfarbe","v":6},{"$f":"Zellfarbe","v":6},{"$f":"Zellfarbe","v":6},{"$f":"Zellfarbe","v":6},{"$f":"Zellfarbe","v":6},{"$f":"Zellfarbe","v":6},{"$f":"Zellfarbe","v":6},{"$f":"Zellfarbe","v":6},{"$f":"Zellfarbe","v":6},{"$f":"Zellfarbe","v":6},{"$f":"Zellfarbe","v":6},{"$f":"Zellfarbe","v":6},{"$f":"Zellfarbe","v":6},{"$f":"Zellfarbe","v":6},{"$f":"Zellfarbe","v":6},{"$f":"Zellfarbe","v":6},{"$f":"Zellfarbe","v":6},{"$f":"Zellfarbe","v":6},{"$f":"Zellfarbe","v":6},{"$f":"Zellfarbe","v":6},{"$f":"Zellfarbe","v":6},{"$f":"Zellfarbe","v":6},{"$f":"Zellfarbe","v":6},{"$f":"Zellfarbe","v":6},{"$f":"Zellfarbe","v":6},{"$f":"Zellfarbe","v":6},{"$f":"Zellfarbe","v":6},{"$f":"Zellfarbe","v":6},null,null,0]
[null,null,null,null,null,null,null,null,58,null,null,null,null,null,null,null,null,null,null,null,null,null,null,null,null,null,null,null,null,null,null,null,null,null,null,null,null,null,null,null,null,null,null,null,null,null,null,null,null,null,{"$f":"Zellfarbe","v":6},{"$f":"Zellfarbe","v":6},{"$f":"Zellfarbe","v":6},{"$f":"Zellfarbe","v":6},{"$f":"Zellfarbe","v":6},{"$f":"Zellfarbe","v":6},{"$f":"Zellfarbe","v":6},{"$f":"Zellfarbe","v":6},{"$f":"Zellfarbe","v":6},{"$f":"Zellfarbe","v":6},{"$f":"Zellfarbe","v":6},{"$f":"Zellfarbe","v":6},{"$f":"Zellfarbe","v":6},{"$f":"Zellfarbe","v":6},{"$f":"Zellfarbe","v":6},{"$f":"Zellfarbe","v":6},{"$f":"Zellfarbe","v":6},{"$f":"Zellfarbe","v":6},{"$f":"Zellfarbe","v":6},{"$f":"Zellfarbe","v":6},{"$f":"Zellfarbe","v":6},{"$f":"Zellfarbe","v":6},{"$f":"Zellfarbe","v":6},{"$f":"Zellfarbe","v":6},{"$f":"Zellfarbe","v":6},{"$f":"Zellfarbe","v":6},{"$f":"Zellfarbe","v":6},{"$f":"Zellfarbe","v":6},{"$f":"Zellfarbe","v":6},{"$f":"Zellfarbe","v":6},null,null,0]
[null,null,null,null,null,null,null,null,59,null,null,null,null,null,null,null,null,null,null,null,null,null,null,null,null,null,null,null,null,null,null,null,null,null,null,null,null,null,null,null,null,null,null,null,null,null,null,null,null,null,{"$f":"Zellfarbe","v":6},{"$f":"Zellfarbe","v":6},{"$f":"Zellfarbe","v":6},{"$f":"Zellfarbe","v":6},{"$f":"Zellfarbe","v":6},{"$f":"Zellfarbe","v":6},{"$f":"Zellfarbe","v":6},{"$f":"Zellfarbe","v":6},{"$f":"Zellfarbe","v":6},{"$f":"Zellfarbe","v":6},{"$f":"Zellfarbe","v":6},{"$f":"Zellfarbe","v":6},{"$f":"Zellfarbe","v":6},{"$f":"Zellfarbe","v":6},{"$f":"Zellfarbe","v":6},{"$f":"Zellfarbe","v":6},{"$f":"Zellfarbe","v":6},{"$f":"Zellfarbe","v":6},{"$f":"Zellfarbe","v":6},{"$f":"Zellfarbe","v":6},{"$f":"Zellfarbe","v":6},{"$f":"Zellfarbe","v":6},{"$f":"Zellfarbe","v":6},{"$f":"Zellfarbe","v":6},{"$f":"Zellfarbe","v":6},{"$f":"Zellfarbe","v":6},{"$f":"Zellfarbe","v":6},{"$f":"Zellfarbe","v":6},{"$f":"Zellfarbe","v":6},{"$f":"Zellfarbe","v":6},null,null,0]
[null,null,null,null,null,null,null,null,60,null,null,null,null,null,null,null,null,null,null,null,null,null,null,null,null,null,null,null,null,null,null,null,null,null,null,null,null,null,null,null,null,null,null,null,null,null,null,null,null,null,{"$f":"Zellfarbe","v":6},{"$f":"Zellfarbe","v":6},{"$f":"Zellfarbe","v":6},{"$f":"Zellfarbe","v":6},{"$f":"Zellfarbe","v":6},{"$f":"Zellfarbe","v":6},{"$f":"Zellfarbe","v":6},{"$f":"Zellfarbe","v":6},{"$f":"Zellfarbe","v":6},{"$f":"Zellfarbe","v":6},{"$f":"Zellfarbe","v":6},{"$f":"Zellfarbe","v":6},{"$f":"Zellfarbe","v":6},{"$f":"Zellfarbe","v":6},{"$f":"Zellfarbe","v":6},{"$f":"Zellfarbe","v":6},{"$f":"Zellfarbe","v":6},{"$f":"Zellfarbe","v":6},{"$f":"Zellfarbe","v":6},{"$f":"Zellfarbe","v":6},{"$f":"Zellfarbe","v":6},{"$f":"Zellfarbe","v":6},{"$f":"Zellfarbe","v":6},{"$f":"Zellfarbe","v":6},{"$f":"Zellfarbe","v":6},{"$f":"Zellfarbe","v":6},{"$f":"Zellfarbe","v":6},{"$f":"Zellfarbe","v":6},{"$f":"Zellfarbe","v":6},{"$f":"Zellfarbe","v":6},null,null,0]
[null,null,null,null,null,null,null,null,null,null,null,null,null,null,null,null,null,null,null,null,null,null,null,null,null,null,null,null,null,null,null,null,null,null,null,null,null,null,null,null,null,null,null,null,null,null,null,null,null,null,null,null,null,null,null,null,null,null,null,null,null,null,null,null,null,null,null,null,null,null,null,null,null,null,null,null,null,null,null,null,null,{"$f":"SUM(CE11:CE70)","v":0}]
[null,null,null,null,null,null,null,null,null,null,1,2,3,4,5,6,7,8,9,10,11,12,13,14,15,16,17,18,19,20,21,22,23,24,25,26,27,28,29,30]

{"sheet":"Archiv","index":1,"n_rows":62,"n_cols":129,"rows_kept":62,"cut":false,"hidden":false,"merged":[]}
[null,null,"Heft Profi-Nonogramm 46, Nr. 18",null,null,null,null,null,null,null,null,null,null,null,null,null,null,null,null,null,null,null,null,null,null,null,null,null,"Aufgabe Nr. ",null,null,null,1,null,null,null,"Zugehörige Lösung",null,null,null,null,null,null,null,null,null,null,null,null,null,null,null,null,null,null,null,null,null,null,null,null,null,null,null,null,null,null,null,null,null,"Heft Profi-Nonogramm 46, Nr. 17",null,null,null,null,null,null,null,null,null,null,null,null,null,null,null,null,null,null,null,null,null,null,null,null,null,"Aufgabe Nr. ",null,null,null,2,null,null,null,"Zugehörige Lösung"]
[]
[null,null,0,null,null,null,3,3,null,null,2,null,2,null,null,2,null,null,null,2,null,null,null,4,4,null,3,null,null,2,null,2,null,null,null,null,0,null,null,null,3,3,null,null,2,null,2,null,null,2,null,null,null,2,null,null,null,4,4,null,3,null,null,2,null,2,null,null,null,null,2,null,3,null,2,2,null,null,3,null,null,3,null,null,4,null,null,null,null,0,null,null,null,null,0,null,null,null,null,null,null,null,null,null,2,null,3,null,2,2,null,null,3,null,null,3,null,null,4,null,null,null,null,0,null,null,null,null,0]
[null,null,null,null,3,null,null,null,5,3,null,3,null,null,null,null,null,3,3,null,null,4,null,null,null,6,null,6,null,null,null,null,null,null,null,null,null,null,3,null,null,null,5,3,null,3,null,null,null,null,null,3,3,null,null,4,null,null,null,6,null,6,null,null,null,null,null,null,null,null,null,null,null,3,null,null,3,null,null,null,null,null,null,null,null,null,null,4,null,null,null,3,null,null,null,null,null,null,null,null,null,null,null,null,null,null,null,3,null,null,3,null,null,null,null,null,null,null,null,null,null,4,null,null,null,3]
[null,null,null,null,4,null,3,4,4,null,3,3,3,null,4,5,4,5,4,null,4,4,5,null,6,5,5,null,4,null,null,3,null,null,null,null,null,null,4,null,3,4,4,null,3,3,3,null,4,5,4,5,4,null,4,4,5,null,6,5,5,null,4,null,null,3,null,null,null,null,2,null,3,2,1,1,null,3,3,null,null,4,null,2,null,null,null,5,5,null,4,null,null,4,null,null,null,null,null,null,null,null,null,null,2,null,3,2,1,1,null,3,3,null,null,4,null,2,null,null,null,5,5,null,4,null,null,4]
[null,null,4,null,null,2,null,4,null,null,null,null,null,2,null,null,null,null,null,null,null,3,null,4,4,4,5,null,null,4,null,3,null,null,null,null,4,null,null,2,null,4,null,null,null,null,null,2,null,null,null,null,null,null,null,3,null,4,4,4,5,null,null,4,null,3,null,null,null,null,2,null,1,null,1,2,null,null,5,null,5,null,6,null,2,2,null,null,null,6,4,3,3,null,3,null,null,null,null,null,null,null,null,null,2,null,1,null,1,2,null,null,5,null,5,null,6,null,2,2,null,null,null,6,4,3,3,null,3]
[null,null,4,null,3,2,2,null,2,4,null,6,4,null,null,null,4,3,2,3,null,4,5,5,4,3,5,null,null,null,null,3,null,null,null,null,4,null,3,2,2,null,2,4,null,6,4,null,null,null,4,3,2,3,null,4,5,5,4,3,5,null,null,null,null,3,null,null,null,null,1,2,null,null,null,null,null,6,6,null,null,5,null,5,null,4,2,null,null,4,null,3,3,null,2,null,null,null,null,null,null,null,null,null,1,2,null,null,null,null,null,6,6,null,null,5,null,5,null,4,2,null,null,4,null,3,3,null,2]
[null,null,null,4,null,2,null,3,2,5,null,null,5,4,4,null,3,null,1,null,null,null,null,6,4,4,null,4,6,4,null,null,null,null,null,null,null,4,null,2,null,3,2,5,null,null,5,4,4,null,3,null,1,null,null,null,null,6,4,4,null,4,6,4,null,null,null,null,null,null,1,null,3,null,7,null,9,9,null,7,null,null,5,null,5,4,null,null,2,null,1,2,3,3,null,null,null,null,null,null,null,null,null,null,1,null,3,null,7,null,9,9,null,7,null,null,5,null,5,4,null,null,2,null,1,2,3,3]
[null,null,3,null,2,null,3,3,4,null,6,null,5,null,3,null,null,0,null,null,6,null,null,7,null,4,5,null,null,4,null,3,null,null,null,null,3,null,2,null,3,3,4,null,6,null,5,null,3,null,null,0,null,null,6,null,null,7,null,4,5,null,null,4,null,3,null,null,null,null,1,null,5,null,7,null,8,9,9,8,null,4,null,null,null,5,null,3,null,null,0,null,3,null,0,null,null,null,null,null,null,null,null,null,1,null,5,null,7,null,8,9,9,8,null,4,null,null,null,5,null,3,null,null,0,null,3,null,0]
[null,null,3,null,2,null,null,3,null,null,7,7,null,3,2,null,null,0,null,5,7,6,6,null,6,null,null,3,null,3,null,null,null,null,null,null,3,null,2,null,null,3,null,null,7,7,null,3,2,null,null,0,null,5,7,6,6,null,6,null,null,3,null,3,null,null,null,null,null,null,null,5,6,8,null,null,8,null,7,null,null,null,3,0,2,null,5,4,null,1,null,null,5,null,null,null,null,null,null,null,null,null,null,null,null,5,6,8,null,null,8,null,7,null,null,null,3,0,2,null,5,4,null,1,null,null,5]
[null,null,3,null,3,3,null,3,null,5,7,7,6,null,null,null,null,null,null,null,null,7,7,6,null,null,5,null,5,4,null,3,null,null,null,null,3,null,3,3,null,3,null,5,7,7,6,null,null,null,null,null,null,null,null,7,7,6,null,null,5,null,5,4,null,3,null,null,null,null,3,null,6,null,5,7,7,7,null,null,6,null,null,null,null,null,6,null,1,null,null,4,4,null,null,null,null,null,null,null,null,null,null,null,3,null,6,null,5,7,7,7,null,null,6,null,null,null,null,null,6,null,1,null,null,4,4]
[null,null,null,null,3,3,3,null,null,null,null,6,null,null,null,7,5,null,null,null,7,6,null,5,null,4,null,4,5,5,null,3,null,null,null,null,null,null,3,3,3,null,null,null,null,6,null,null,null,7,5,null,null,null,7,6,null,5,null,4,null,4,5,5,null,3,null,null,null,null,4,6,null,null,7,null,null,null,3,3,4,null,3,null,null,4,null,3,2,null,3,null,null,null,3,null,null,null,null,null,null,null,null,null,4,6,null,null,7,null,null,null,3,3,4,null,3,null,null,4,null,3,2,null,3,null,null,null,3]
[null,null,null,3,null,null,4,null,7,null,6,null,null,5,7,7,null,null,4,6,7,7,7,null,6,null,null,null,4,6,null,3,null,null,null,null,null,3,null,null,4,null,7,null,6,null,null,5,7,7,null,null,4,6,7,7,7,null,6,null,null,null,4,6,null,3,null,null,null,null,4,null,6,6,null,null,7,null,null,null,null,null,null,3,4,null,5,null,null,null,null,null,3,null,3,null,null,null,null,null,null,null,null,null,4,null,6,6,null,null,7,null,null,null,null,null,null,3,4,null,5,null,null,null,null,null,3,null,3]
[null,null,null,null,null,null,4,7,7,6,null,5,6,null,null,6,4,null,4,6,6,6,6,6,null,null,2,null,null,null,null,null,null,null,null,null,null,null,null,null,4,7,7,6,null,5,6,null,null,6,4,null,4,6,6,6,6,6,null,null,2,null,null,null,null,null,null,null,null,null,4,null,null,6,null,7,null,null,null,0,null,3,4,3,4,null,5,5,5,null,3,null,null,null,3,null,null,null,null,null,null,null,null,null,4,null,null,6,null,7,null,null,null,0,null,3,4,3,4,null,5,5,5,null,3,null,null,null,3]
[null,null,null,3,2,null,null,null,6,null,null,null,6,null,4,null,null,4,null,null,7,null,7,null,5,null,2,3,null,null,null,null,null,null,null,null,null,3,2,null,null,null,6,null,null,null,6,null,4,null,null,4,null,null,7,null,7,null,5,null,2,3,null,null,null,null,null,null,null,null,null,null,6,null,7,null,null,null,null,null,null,5,null,2,3,4,6,null,4,null,null,null,4,3,null,null,null,null,null,null,null,null,null,null,null,null,6,null,7,null,null,null,null,null,null,5,null,2,3,4,6,null,4,null,null,null,4,3]
[null,null,null,null,null,null,null,5,null,null,5,7,7,6,null,5,null,6,5,7,6,6,6,6,4,3,null,null,5,5,null,4,null,null,null,null,null,null,null,null,null,5,null,null,5,7,7,6,null,5,null,6,5,7,6,6,6,6,4,3,null,null,5,5,null,4,null,null,null,null,4,null,null,6,null,5,null,1,null,null,3,null,null,null,3,4,6,null,null,null,2,3,3,2,null,null,null,null,null,null,null,null,null,null,4,null,null,6,null,5,null,1,null,null,3,null,null,null,3,4,6,null,null,null,2,3,3,2]
[null,null,3,null,3,3,null,null,null,5,null,7,6,null,null,null,4,null,null,7,null,7,null,6,4,3,3,4,5,6,null,3,null,null,null,null,3,null,3,3,null,null,null,5,null,7,6,null,null,null,4,null,null,7,null,7,null,6,4,3,3,4,5,6,null,3,null,null,null,null,4,null,5,null,7,null,null,null,null,null,3,2,null,null,null,4,null,3,3,2,3,null,2,null,0,null,null,null,null,null,null,null,null,null,4,null,5,null,7,null,null,null,null,null,3,2,null,null,null,4,null,3,3,2,3,null,2,null,0]
[null,null,null,null,null,null,3,4,null,7,null,6,6,8,7,6,3,null,3,5,6,6,6,4,null,4,4,4,null,5,null,3,null,null,null,null,null,null,null,null,3,4,null,7,null,6,6,8,7,6,3,null,3,5,6,6,6,4,null,4,4,4,null,5,null,3,null,null,null,null,null,5,null,6,6,null,3,null,3,null,3,null,null,null,4,null,4,null,null,null,null,1,0,1,null,null,null,null,null,null,null,null,null,null,null,5,null,6,6,null,3,null,3,null,3,null,null,null,4,null,4,null,null,null,null,1,0,1]
[null,null,1,null,2,null,2,null,7,7,6,null,5,7,7,6,null,2,null,null,5,null,5,null,null,null,null,4,null,4,null,3,null,null,null,null,1,null,2,null,2,null,7,7,6,null,5,7,7,6,null,2,null,null,5,null,5,null,null,null,null,4,null,4,null,3,null,null,null,null,null,null,6,6,8,null,null,null,3,4,null,null,null,null,null,null,3,2,3,null,null,0,null,null,1,null,null,null,null,null,null,null,null,null,null,null,6,6,8,null,null,null,3,4,null,null,null,null,null,null,3,2,3,null,null,0,null,null,1]
[null,null,null,1,null,null,2,null,null,5,null,null,null,null,6,null,null,null,3,2,2,3,3,null,4,null,null,null,5,4,null,2,null,null,null,null,null,1,null,null,2,null,null,5,null,null,null,null,6,null,null,null,3,2,2,3,3,null,4,null,null,null,5,4,null,2,null,null,null,null,null,5,6,7,null,8,8,null,null,6,8,7,6,null,null,4,null,null,null,null,3,null,1,null,2,null,null,null,null,null,null,null,null,null,null,5,6,7,null,8,8,null,null,6,8,7,6,null,null,4,null,null,null,null,3,null,1,null,2]
[null,null,0,null,null,null,null,null,2,null,null,5,6,null,null,6,7,7,null,2,1,1,null,3,null,null,6,null,5,null,null,null,null,null,null,null,0,null,null,null,null,null,2,null,null,5,6,null,null,6,7,7,null,2,1,1,null,3,null,null,6,null,5,null,null,null,null,null,null,null,null,null,7,8,null,9,9,null,7,null,8,7,null,null,null,3,2,1,null,null,null,0,null,null,null,null,null,null,null,null,null,null,null,null,null,null,7,8,null,9,9,null,7,null,8,7,null,null,null,3,2,1,null,null,null,0]
[null,null,null,null,5,null,3,2,null,2,null,7,7,null,null,null,7,7,null,null,0,null,3,4,null,6,5,5,null,6,null,3,null,null,null,null,null,null,5,null,3,2,null,2,null,7,7,null,null,null,7,7,null,null,0,null,3,4,null,6,5,5,null,6,null,3,null,null,null,null,null,6,7,8,null,null,null,null,9,null,7,5,null,null,3,null,null,null,3,null,null,null,1,null,3,null,null,null,null,null,null,null,null,null,null,6,7,8,null,null,null,null,9,null,7,5,null,null,3,null,null,null,3,null,null,null,1,null,3]
[null,null,null,null,4,null,null,3,2,null,null,7,7,6,null,null,null,4,2,1,null,2,null,null,null,null,4,null,4,null,null,null,null,null,null,null,null,null,4,null,null,3,2,null,null,7,7,6,null,null,null,4,2,1,null,2,null,null,null,null,4,null,4,null,null,null,null,null,null,null,5,null,7,null,null,null,9,null,null,null,null,null,3,3,null,null,1,null,null,2,0,null,1,null,3,null,null,null,null,null,null,null,null,null,5,null,7,null,null,null,9,null,null,null,null,null,3,3,null,null,1,null,null,2,0,null,1,null,3]
[null,null,4,null,null,null,null,4,null,null,null,5,null,null,null,5,null,null,1,1,1,null,3,6,3,null,null,5,null,6,6,null,null,null,null,null,4,null,null,null,null,4,null,null,null,5,null,null,null,5,null,null,1,1,1,null,3,6,3,null,null,5,null,6,6,null,null,null,null,null,6,null,null,6,9,null,null,null,9,null,null,null,2,null,null,0,null,3,null,null,null,0,1,null,3,null,null,null,null,null,null,null,null,null,6,null,null,6,9,null,null,null,9,null,null,null,2,null,null,0,null,3,null,null,null,0,1,null,3]
[null,null,null,null,null,null,7,null,null,2,null,null,null,5,null,7,5,null,0,null,2,null,null,6,null,3,null,4,6,null,null,4,null,null,null,null,null,null,null,null,7,null,null,2,null,null,null,5,null,7,5,null,0,null,2,null,null,6,null,3,null,4,6,null,null,4,null,null,null,null,null,null,null,null,8,9,null,9,8,null,null,0,null,null,0,1,null,null,null,0,1,1,3,null,3,null,null,null,null,null,null,null,null,null,null,null,null,null,8,9,null,9,8,null,null,0,null,null,0,1,null,null,null,0,1,1,3,null,3]
[null,null,null,null,5,null,7,6,4,null,null,0,null,null,7,7,5,2,null,1,null,5,4,null,null,null,4,4,null,5,null,4,null,null,null,null,null,null,5,null,7,6,4,null,null,0,null,null,7,7,5,2,null,1,null,5,4,null,null,null,4,4,null,5,null,4,null,null,null,null,null,null,null,null,null,null,null,null,null,null,null,null,null,null,null,null,3,null,null,2,null,null,null,null,null,null,null,null,null,null,null,null,null,null,null,null,null,null,null,null,null,null,null,null,null,null,null,null,null,null,3,null,null,2]
[null,null,1,null,5,6,null,null,null,1,1,null,null,null,null,5,3,null,null,0,1,null,5,null,null,3,null,3,null,5,null,4,null,null,null,null,1,null,5,6,null,null,null,1,1,null,null,null,null,5,3,null,null,0,1,null,5,null,null,3,null,3,null,5,null,4,null,null,null,null,null,6,5,null,null,5,6,5,null,3,null,null,3,null,3,null,null,2,1,null,2,3,3,null,2,null,null,null,null,null,null,null,null,null,null,6,5,null,null,5,6,5,null,3,null,null,3,null,3,null,null,2,1,null,2,3,3,null,2]
[null,null,1,null,2,null,null,null,0,null,null,null,4,null,null,null,4,null,null,null,3,null,5,4,5,4,5,null,3,null,null,null,null,null,null,null,1,null,2,null,null,null,0,null,null,null,4,null,null,null,4,null,null,null,3,null,5,4,5,4,5,null,3]
[null,null,1,null,null,0,null,2,null,3,null,8,7,null,2,3,4,5,4,5,null,4,null,4,null,4,null,6,null,5,null,4,null,null,null,null,1,null,null,0,null,2,null,3,null,8,7,null,2,3,4,5,4,5,null,4,null,4,null,4,null,6,null,5,null,4]
[null,null,2,null,3,null,null,null,2,4,5,8,6,5,null,4,5,null,6,6,6,4,null,null,null,null,4,null,null,null,null,4,null,null,null,null,2,null,3,null,null,null,2,4,5,8,6,5,null,4,5,null,6,6,6,4,null,null,null,null,4,null,null,null,null,4]
[null,null,null,3,4,null,4,null,null,null,null,null,5,null,4,3,3,3,3,4,null,4,3,null,null,null,null,null,6,6,null,4,null,null,null,null,null,3,4,null,4,null,null,null,null,null,5,null,4,3,3,3,3,4,null,4,3,null,null,null,null,null,6,6,null,4]
[null,null,2,null,null,5,null,null,null,3,3,null,null,3,null,3,null,null,null,2,3,3,3,null,null,3,null,null,null,5,null,4,null,null,null,null,2,null,null,5,null,null,null,3,3,null,null,3,null,3,null,null,null,2,3,3,3,null,null,3,null,null,null,5,null,4]
[null,null,null,null,3,null,null,3,null,null,null,5,null,null,2,2,null,4,null,null,null,null,null,2,null,null,null,3,null,null,null,4,null,null,null,null,null,null,3,null,null,3,null,null,null,5,null,null,2,2,null,4,null,null,null,null,null,2,null,null,null,3,null,null,null,4]
[null,null,null,2,null,2,2,null,2,3,null,6,4,null,null,null,null,4,5,null,null,3,null,3,null,0,1,null,3,4,null,4,null,null,null,null,null,2,null,2,2,null,2,3,null,6,4,null,null,null,null,4,5,null,null,3,null,3,null,0,1,null,3,4,null,4]
[null,null,null,null,null,null,null,2,1,null,4,null,null,null,null,2,3,null,null,6,6,null,null,4,3,null,0,2,null,null,null,3,null,null,null,null,null,null,null,null,null,2,1,null,4,null,null,null,null,2,3,null,null,6,6,null,null,4,3,null,0,2,null,null,null,3]
[null,null,null,null,4,null,2,2,null,3,3,null,4,3,null,null,3,null,4,null,null,5,null,6,4,2,0,null,null,4,null,2,null,null,null,null,null,null,4,null,2,2,null,3,3,null,4,3,null,null,3,null,4,null,null,5,null,6,4,2,0,null,null,4,null,2]
[null,null,4,null,null,null,3,2,null,null,null,3,null,null,3,null,null,5,null,6,6,5,null,null,5,null,null,0,null,null,null,null,null,null,null,null,4,null,null,null,3,2,null,null,null,3,null,null,3,null,null,5,null,6,6,5,null,null,5,null,null,0]
[null,null,5,null,5,4,null,null,null,0,2,null,null,null,null,3,4,null,5,null,5,null,1,null,null,null,null,3,3,null,null,4,null,null,null,null,5,null,5,4,null,null,null,0,2,null,null,null,null,3,4,null,5,null,5,null,1,null,null,null,null,3,3,null,null,4]
[null,null,null,null,5,4,4,3,3,null,null,null,3,4,2,null,null,5,null,4,4,null,1,1,4,5,6,4,4,null,null,4,null,null,null,null,null,null,5,4,4,3,3,null,null,null,3,4,2,null,null,5,null,4,4,null,1,1,4,5,6,4,4,null,null,4]
[null,null,4,null,null,4,null,null,null,2,0,2,3,null,3,null,4,null,4,null,3,2,null,null,null,6,7,6,null,4,null,3,null,null,null,null,4,null,null,4,null,null,null,2,0,2,3,null,3,null,4,null,4,null,3,2,null,null,null,6,7,6,null,4,null,3]
[null,null,null,3,null,null,null,null,3,null,null,null,null,3,null,3,null,4,null,2,null,null,4,null,5,null,6,null,4,3,null,2,null,null,null,null,null,3,null,null,null,null,3,null,null,null,null,3,null,3,null,4,null,2,null,null,4,null,5,null,6,null,4,3,null,2]
[null,null,3,null,2,null,null,null,null,3,null,0,null,3,null,null,4,2,2,null,1,null,3,null,null,null,5,5,null,4,null,null,null,null,null,null,3,null,2,null,null,null,null,3,null,0,null,3,null,null,4,2,2,null,1,null,3,null,null,null,5,5,null,4]
[null,null,3,null,2,3,4,4,null,null,3,null,2,null,null,4,null,2,1,null,2,2,4,null,6,6,null,4,4,null,null,3,null,null,null,null,3,null,2,3,4,4,null,null,3,null,2,null,null,4,null,2,1,null,2,2,4,null,6,6,null,4,4,null,null,3]
[null,null,4,null,null,2,4,null,null,null,null,null,null,3,null,null,4,null,2,null,null,3,3,4,6,null,6,null,null,6,null,null,null,null,null,null,4,null,null,2,4,null,null,null,null,null,null,3,null,null,4,null,2,null,null,3,3,4,6,null,6,null,null,6]
[null,null,null,5,null,null,4,3,4,3,null,2,0,null,4,6,null,3,null,null,4,null,6,null,null,6,null,null,2,3,null,4,null,null,null,null,null,5,null,null,4,3,4,3,null,2,0,null,4,6,null,3,null,null,4,null,6,null,null,6,null,null,2,3,null,4]
[null,null,1,null,5,null,3,null,null,null,4,4,null,1,null,null,null,3,2,2,null,6,6,7,6,null,null,null,null,null,null,5,null,null,null,null,1,null,5,null,3,null,null,null,4,4,null,1,null,null,null,3,2,2,null,6,6,7,6,null,null,null,null,null,null,5]
[null,null,0,null,5,null,3,null,4,null,5,4,null,null,null,null,null,4,2,2,3,null,null,8,6,5,null,3,null,null,null,3,null,null,null,null,0,null,5,null,3,null,4,null,5,4,null,null,null,null,null,4,2,2,3,null,null,8,6,5,null,3,null,null,null,3]
[null,null,null,2,null,5,null,3,4,5,null,5,null,null,3,null,null,null,5,null,null,5,6,7,6,null,3,null,null,4,null,3,null,null,null,null,null,2,null,5,null,3,4,5,null,5,null,null,3,null,null,null,5,null,null,5,6,7,6,null,3,null,null,4,null,3]
[null,null,1,null,null,null,5,null,null,null,null,null,null,null,3,4,3,null,6,5,5,null,null,6,null,null,null,0,0,null,null,2,null,null,null,null,1,null,null,null,5,null,null,null,null,null,null,null,3,4,3,null,6,5,5,null,null,6,null,null,null,0,0,null,null,2]
[null,null,1,null,null,null,null,3,null,null,5,null,5,6,null,2,null,5,7,6,null,null,5,5,5,null,2,0,1,2,null,null,null,null,null,null,1,null,null,null,null,3,null,null,5,null,5,6,null,2,null,5,7,6,null,null,5,5,5,null,2,0,1,2]
[null,null,null,2,2,null,null,3,3,3,null,null,null,5,3,2,null,5,5,5,4,null,5,4,4,3,null,1,1,2,null,2,null,null,null,null,null,2,2,null,null,3,3,3,null,null,null,5,3,2,null,5,5,5,4,null,5,4,4,3,null,1,1,2,null,2]
[null,null,null,null,2,3,4,null,null,null,3,5,7,5,null,null,5,6,5,4,4,4,5,3,null,null,null,2,2,3,null,2,null,null,null,null,null,null,2,3,4,null,null,null,3,5,7,5,null,null,5,6,5,4,4,4,5,3,null,null,null,2,2,3,null,2]
[null,null,2,3,null,null,3,null,2,2,null,4,null,6,null,null,6,6,4,null,null,null,null,4,null,null,3,null,2,3,null,3,null,null,null,null,2,3,null,null,3,null,2,2,null,4,null,6,null,null,6,6,4,null,null,null,null,4,null,null,3,null,2,3,null,3]
[null,null,null,null,2,null,null,6,null,null,1,null,null,null,null,7,8,null,null,6,5,5,4,null,2,2,null,3,null,3,null,3,null,null,null,null,null,null,2,null,null,6,null,null,1,null,null,null,null,7,8,null,null,6,5,5,4,null,2,2,null,3,null,3,null,3]
[null,null,3,null,2,null,null,null,null,2,2,null,3,3,null,null,null,null,null,5,4,5,4,4,3,2,2,null,4,null,null,null,null,null,null,null,3,null,2,null,null,null,null,2,2,null,3,3,null,null,null,null,null,5,4,5,4,4,3,2,2,null,4]
[null,null,null,null,3,null,4,null,null,null,null,3,null,2,2,null,null,null,null,null,3,null,null,null,null,3,null,3,4,null,3,1,null,null,null,null,null,null,3,null,4,null,null,null,null,3,null,2,2,null,null,null,null,null,3,null,null,null,null,3,null,3,4,null,3,1]
[null,null,null,4,4,null,null,null,6,5,5,null,4,null,3,null,3,null,2,1,2,null,6,7,7,5,4,null,null,5,null,1,null,null,null,null,null,4,4,null,null,null,6,5,5,null,4,null,3,null,3,null,2,1,2,null,6,7,7,5,4,null,null,5,null,1]
[null,null,3,null,null,2,null,null,null,null,null,6,null,5,null,5,null,4,null,2,2,null,6,7,7,5,4,2,null,4,null,null,null,null,null,null,3,null,null,2,null,null,null,null,null,6,null,5,null,5,null,4,null,2,2,null,6,7,7,5,4,2,null,4]
[null,null,null,4,5,null,2,null,2,null,4,4,5,null,null,5,5,4,5,3,3,3,null,7,null,null,null,3,3,null,null,null,null,null,null,null,null,4,5,null,2,null,2,null,4,4,5,null,null,5,5,4,5,3,3,3,null,7,null,null,null,3,3]
[null,null,null,6,5,4,2,2,1,2,2,3,null,null,7,7,6,6,6,5,null,5,6,6,5,5,3,null,3,null,null,4,null,null,null,null,null,6,5,4,2,2,1,2,2,3,null,null,7,7,6,6,6,5,null,5,6,6,5,5,3,null,3,null,null,4]
[null,null,null,null,null,null,null,null,null,null,null,0,null,null,null,null,8,6,7,null,6,null,null,null,null,null,null,null,null,null,null,4,null,null,null,null,null,null,null,null,null,null,null,null,null,0,null,null,null,null,8,6,7,null,6,null,null,null,null,null,null,null,null,null,null,4]
[null,null,null,3,3,3,3,3,3,2,1,null,null,null,5,6,6,5,null,4,null,4,4,3,3,3,3,3,4,3,null,null,null,null,null,null,null,3,3,3,3,3,3,2,1,null,null,null,5,6,6,5,null,4,null,4,4,3,3,3,3,3,4,3]